{"text_format":"1","workbook":"xlsx","n_sheets":3,"sheets":["Data","Pivots","Dashboard"],"not_rendered":{"charts":4,"images":3,"macros":1,"external_links":0,"defined_names":8,"comments":0,"pivot_tables":5},"unopened":[],"bounds":{"document_bytes":16777216,"sheet_cells":100000,"rows_first":2000,"rows_last":500,"rows_between":2000,"halvings":0,"cell_chars":16384,"cell_head_chars":4096},"cells_cut":0,"cells_raw":0,"read":"whole","date_system":"1900"}

{"sheet":"Data","index":0,"n_rows":504,"n_cols":15,"rows_kept":504,"cut":false,"hidden":true,"merged":[]}
["CustID","Customer","Industry","Region","Product","Estimated Revenue ($000)","Actual Revenue ($000)","Quarter","Year","Sales Rep","YQ","IYQ","RYQ","SYQ","PYQ"]
[{"$f":"IF(LEN(B2)=9,RIGHT(B2,1),IF(LEN(B2)=10,RIGHT(B2,2),RIGHT(B2,3)))","v":"1"},"Customer1","Consumer Goods","Europe","Product1",250,255,"Q4",2006,"Fritz Klein","2006Q4","Consumer Goods2006Q4","Europe2006Q4","Fritz Klein2006Q4","Product12006Q4"]
[{"$f":"IF(LEN(B3)=9,RIGHT(B3,1),IF(LEN(B3)=10,RIGHT(B3,2),RIGHT(B3,3)))","v":"2"},"Customer2","Consumer Goods","North America","Product2",200,319,"Q3",2008,"Porter Le","2008Q3","Consumer Goods2008Q3","North America2008Q3","Porter Le2008Q3","Product22008Q3"]
["3","Customer3","Services","Asia Pacific","Product1",600,123,"Q3",2006,"Oren Chase","2006Q3","Services2006Q3","Asia Pacific2006Q3","Oren Chase2006Q3","Product12006Q3"]
["4","Customer4","Finance","North America","Product2",400,272,"Q4",2008,"Porter Le","2008Q4","Finance2008Q4","North America2008Q4","Porter Le2008Q4","Product22008Q4"]
["5","Customer5","Consumer Goods","Europe","Product3",200,30,"Q2",2006,"Fritz Klein","2006Q2","Consumer Goods2006Q2","Europe2006Q2","Fritz Klein2006Q2","Product32006Q2"]
["6","Customer6","Services","North America","Product4",550,537,"Q1",2007,"Porter Le","2007Q1","Services2007Q1","North America2007Q1","Porter Le2007Q1","Product42007Q1"]
["7","Customer7","Technology","North America","Product4",650,89,"Q4",2005,"Porter Le","2005Q4","Technology2005Q4","North America2005Q4","Porter Le2005Q4","Product42005Q4"]
["8","Customer8","Consumer Goods","Europe","Product2",200,249,"Q4",2003,"Fritz Klein","2003Q4","Consumer Goods2003Q4","Europe2003Q4","Fritz Klein2003Q4","Product22003Q4"]
["9","Customer9","Healthcare","Asia Pacific","Product2",450,268,"Q4",2005,"Oren Chase","2005Q4","Healthcare2005Q4","Asia Pacific2005Q4","Oren Chase2005Q4","Product22005Q4"]
["10","Customer10","Consumer Goods","Europe","Product2",250,601,"Q2",2005,"Fritz Klein","2005Q2","Consumer Goods2005Q2","Europe2005Q2","Fritz Klein2005Q2","Product22005Q2"]
["11","Customer11","Utilities","South America","Product2",700,475,"Q4",2007,"Nasim Hanson","2007Q4","Utilities2007Q4","South America2007Q4","Nasim Hanson2007Q4","Product22007Q4"]
["12","Customer12","Technology","Europe","Product4",650,378,"Q3",2006,"Fritz Klein","2006Q3","Technology2006Q3","Europe2006Q3","Fritz Klein2006Q3","Product42006Q3"]
["13","Customer13","Materials","Europe","Product3",150,286,"Q4",2006,"Fritz Klein","2006Q4","Materials2006Q4","Europe2006Q4","Fritz Klein2006Q4","Product32006Q4"]
["14","Customer14","Materials","Middle East","Product4",150,158,"Q3",2006,"Bradley Valenzuela","2006Q3","Materials2006Q3","Middle East2006Q3","Bradley Valenzuela2006Q3","Product42006Q3"]
["15","Customer15","Materials","South America","Product3",100,390,"Q3",2004,"Nasim Hanson","2004Q3","Materials2004Q3","South America2004Q3","Nasim Hanson2004Q3","Product32004Q3"]
["16","Customer16","Consumer Goods","North America","Product1",300,291,"Q3",2004,"Porter Le","2004Q3","Consumer Goods2004Q3","North America2004Q3","Porter Le2004Q3","Product12004Q3"]
["17","Customer17","Materials","North America","Product4",100,764,"Q3",2008,"Porter Le","2008Q3","Materials2008Q3","North America2008Q3","Porter Le2008Q3","Product42008Q3"]
["18","Customer18","Finance","North America","Product2",400,415,"Q2",2007,"Porter Le","2007Q2","Finance2007Q2","North America2007Q2","Porter Le2007Q2","Product22007Q2"]
["19","Customer19","Services","Asia Pacific","Product2",600,702,"Q2",2005,"Oren Chase","2005Q2","Services2005Q2","Asia Pacific2005Q2","Oren Chase2005Q2","Product22005Q2"]
["20","Customer20","Services","North America","Product3",550,941,"Q2",2006,"Porter Le","2006Q2","Services2006Q2","North America2006Q2","Porter Le2006Q2","Product32006Q2"]
["21","Customer21","Utilities","South America","Product4",700,53,"Q1",2005,"Nasim Hanson","2005Q1","Utilities2005Q1","South America2005Q1","Nasim Hanson2005Q1","Product42005Q1"]
["22","Customer22","Finance","Europe","Product2",400,151,"Q3",2007,"Fritz Klein","2007Q3","Finance2007Q3","Europe2007Q3","Fritz Klein2007Q3","Product22007Q3"]
["23","Customer23","Healthcare","North America","Product4",500,953,"Q2",2003,"Porter Le","2003Q2","Healthcare2003Q2","North America2003Q2","Porter Le2003Q2","Product42003Q2"]
["24","Customer24","Technology","Asia Pacific","Product1",650,105,"Q2",2004,"Oren Chase","2004Q2","Technology2004Q2","Asia Pacific2004Q2","Oren Chase2004Q2","Product12004Q2"]
["25","Customer25","Technology","Europe","Entera CRM",650,87,"Q1",2006,"Fritz Klein","2006Q1","Technology2006Q1","Europe2006Q1","Fritz Klein2006Q1","Entera CRM2006Q1"]
["26","Customer26","Consumer Goods","Europe","Product1",200,987,"Q4",2008,"Fritz Klein","2008Q4","Consumer Goods2008Q4","Europe2008Q4","Fritz Klein2008Q4","Product12008Q4"]
["27","Customer27","Utilities","North America","Product4",700,81,"Q2",2007,"Porter Le","2007Q2","Utilities2007Q2","North America2007Q2","Porter Le2007Q2","Product42007Q2"]
["28","Customer28","Materials","Middle East","Product4",150,675,"Q1",2007,"Bradley Valenzuela","2007Q1","Materials2007Q1","Middle East2007Q1","Bradley Valenzuela2007Q1","Product42007Q1"]
["29","Customer29","Consumer Goods","Europe","Product2",250,616,"Q4",2007,"Fritz Klein","2007Q4","Consumer Goods2007Q4","Europe2007Q4","Fritz Klein2007Q4","Product22007Q4"]
["30","Customer30","Industrial Goods","Asia Pacific","Product3",550,856,"Q3",2006,"Oren Chase","2006Q3","Industrial Goods2006Q3","Asia Pacific2006Q3","Oren Chase2006Q3","Product32006Q3"]
["31","Customer31","Finance","Europe","Product1",400,617,"Q4",2006,"Fritz Klein","2006Q4","Finance2006Q4","Europe2006Q4","Fritz Klein2006Q4","Product12006Q4"]
["32","Customer32","Consumer Goods","Europe","Product1",300,852,"Q2",2008,"Fritz Klein","2008Q2","Consumer Goods2008Q2","Europe2008Q2","Fritz Klein2008Q2","Product12008Q2"]
["33","Customer33","Services","North America","Product2",600,765,"Q4",2007,"Porter Le","2007Q4","Services2007Q4","North America2007Q4","Porter Le2007Q4","Product22007Q4"]
["34","Customer34","Finance","North America","Entera CRM",300,958,"Q3",2004,"Porter Le","2004Q3","Finance2004Q3","North America2004Q3","Porter Le2004Q3","Entera CRM2004Q3"]
["35","Customer35","Finance","Europe","Product3",400,300,"Q2",2007,"Fritz Klein","2007Q2","Finance2007Q2","Europe2007Q2","Fritz Klein2007Q2","Product32007Q2"]
["36","Customer36","Technology","Europe","Entera CRM",650,84,"Q2",2008,"Fritz Klein","2008Q2","Technology2008Q2","Europe2008Q2","Fritz Klein2008Q2","Entera CRM2008Q2"]
["37","Customer37","Materials","Europe","Product3",150,83,"Q2",2008,"Fritz Klein","2008Q2","Materials2008Q2","Europe2008Q2","Fritz Klein2008Q2","Product32008Q2"]
["38","Customer38","Services","North America","Product2",600,756,"Q1",2007,"Porter Le","2007Q1","Services2007Q1","North America2007Q1","Porter Le2007Q1","Product22007Q1"]
["39","Customer39","Materials","Europe","Product4",100,887,"Q3",2007,"Fritz Klein","2007Q3","Materials2007Q3","Europe2007Q3","Fritz Klein2007Q3","Product42007Q3"]
["40","Customer40","Consumer Goods","Europe","Entera CRM",200,188,"Q3",2003,"Fritz Klein","2003Q3","Consumer Goods2003Q3","Europe2003Q3","Fritz Klein2003Q3","Entera CRM2003Q3"]
["41","Customer41","Materials","Asia Pacific","Product1",150,598,"Q3",2006,"Oren Chase","2006Q3","Materials2006Q3","Asia Pacific2006Q3","Oren Chase2006Q3","Product12006Q3"]
["42","Customer42","Materials","Middle East","Product1",150,64,"Q3",2007,"Bradley Valenzuela","2007Q3","Materials2007Q3","Middle East2007Q3","Bradley Valenzuela2007Q3","Product12007Q3"]
["43","Customer43","Utilities","South America","Product4",700,534,"Q4",2005,"Nasim Hanson","2005Q4","Utilities2005Q4","South America2005Q4","Nasim Hanson2005Q4","Product42005Q4"]
["44","Customer44","Materials","North America","Product4",100,160,"Q3",2003,"Porter Le","2003Q3","Materials2003Q3","North America2003Q3","Porter Le2003Q3","Product42003Q3"]
["45","Customer45","Services","North America","Product3",600,884,"Q1",2008,"Porter Le","2008Q1","Services2008Q1","North America2008Q1","Porter Le2008Q1","Product32008Q1"]
["46","Customer46","Materials","North America","Product1",100,828,"Q3",2004,"Porter Le","2004Q3","Materials2004Q3","North America2004Q3","Porter Le2004Q3","Product12004Q3"]
["47","Customer47","Technology","Europe","Entera CRM",650,81,"Q1",2003,"Fritz Klein","2003Q1","Technology2003Q1","Europe2003Q1","Fritz Klein2003Q1","Entera CRM2003Q1"]
["48","Customer48","Services","North America","Product2",600,835,"Q1",2008,"Porter Le","2008Q1","Services2008Q1","North America2008Q1","Porter Le2008Q1","Product22008Q1"]
["49","Customer49","Consumer Goods","Europe","Product1",250,810,"Q2",2004,"Fritz Klein","2004Q2","Consumer Goods2004Q2","Europe2004Q2","Fritz Klein2004Q2","Product12004Q2"]
["50","Customer50","Healthcare","Europe","Product1",500,536,"Q2",2006,"Fritz Klein","2006Q2","Healthcare2006Q2","Europe2006Q2","Fritz Klein2006Q2","Product12006Q2"]
["51","Customer51","Consumer Goods","Europe","Product3",200,476,"Q2",2005,"Fritz Klein","2005Q2","Consumer Goods2005Q2","Europe2005Q2","Fritz Klein2005Q2","Product32005Q2"]
["52","Customer52","Materials","South America","Product1",100,623,"Q2",2006,"Nasim Hanson","2006Q2","Materials2006Q2","South America2006Q2","Nasim Hanson2006Q2","Product12006Q2"]
["53","Customer53","Finance","Asia Pacific","Entera CRM",450,456,"Q3",2003,"Oren Chase","2003Q3","Finance2003Q3","Asia Pacific2003Q3","Oren Chase2003Q3","Entera CRM2003Q3"]
["54","Customer54","Finance","Europe","Product3",400,450,"Q1",2005,"Fritz Klein","2005Q1","Finance2005Q1","Europe2005Q1","Fritz Klein2005Q1","Product32005Q1"]
["55","Customer55","Technology","Europe","Product3",650,830,"Q3",2005,"Fritz Klein","2005Q3","Technology2005Q3","Europe2005Q3","Fritz Klein2005Q3","Product32005Q3"]
["56","Customer56","Finance","North America","Product4",300,252,"Q1",2005,"Porter Le","2005Q1","Finance2005Q1","North America2005Q1","Porter Le2005Q1","Product42005Q1"]
["57","Customer57","Finance","North America","Product4",350,863,"Q4",2006,"Porter Le","2006Q4","Finance2006Q4","North America2006Q4","Porter Le2006Q4","Product42006Q4"]
["58","Customer58","Technology","Asia Pacific","Product4",650,769,"Q2",2003,"Oren Chase","2003Q2","Technology2003Q2","Asia Pacific2003Q2","Oren Chase2003Q2","Product42003Q2"]
["59","Customer59","Consumer Goods","North America","Product3",300,585,"Q2",2008,"Porter Le","2008Q2","Consumer Goods2008Q2","North America2008Q2","Porter Le2008Q2","Product32008Q2"]
["60","Customer60","Consumer Goods","Europe","Product2",250,436,"Q2",2006,"Fritz Klein","2006Q2","Consumer Goods2006Q2","Europe2006Q2","Fritz Klein2006Q2","Product22006Q2"]
["61","Customer61","Healthcare","South America","Product3",450,161,"Q1",2008,"Nasim Hanson","2008Q1","Healthcare2008Q1","South America2008Q1","Nasim Hanson2008Q1","Product32008Q1"]
["62","Customer62","Consumer Goods","Europe","Product3",300,801,"Q2",2006,"Fritz Klein","2006Q2","Consumer Goods2006Q2","Europe2006Q2","Fritz Klein2006Q2","Product32006Q2"]
["63","Customer63","Finance","Europe","Entera CRM",400,156,"Q3",2003,"Fritz Klein","2003Q3","Finance2003Q3","Europe2003Q3","Fritz Klein2003Q3","Entera CRM2003Q3"]
["64","Customer64","Finance","Europe","Product3",400,32,"Q4",2007,"Fritz Klein","2007Q4","Finance2007Q4","Europe2007Q4","Fritz Klein2007Q4","Product32007Q4"]
["65","Customer65","Industrial Goods","Asia Pacific","Product3",500,122,"Q3",2003,"Oren Chase","2003Q3","Industrial Goods2003Q3","Asia Pacific2003Q3","Oren Chase2003Q3","Product32003Q3"]
[{"$f":"IF(LEN(B67)=9,RIGHT(B67,1),IF(LEN(B67)=10,RIGHT(B67,2),RIGHT(B67,3)))","v":"66"},"Customer66","Consumer Goods","Asia Pacific","Product3",250,732,"Q4",2006,"Oren Chase","2006Q4","Consumer Goods2006Q4","Asia Pacific2006Q4","Oren Chase2006Q4","Product32006Q4"]
["67","Customer67","Consumer Goods","Europe","Entera CRM",200,344,"Q4",2006,"Fritz Klein","2006Q4","Consumer Goods2006Q4","Europe2006Q4","Fritz Klein2006Q4","Entera CRM2006Q4"]
["68","Customer68","Utilities","North America","Product1",700,974,"Q1",2006,"Porter Le","2006Q1","Utilities2006Q1","North America2006Q1","Porter Le2006Q1","Product12006Q1"]
["69","Customer69","Healthcare","Europe","Entera CRM",500,929,"Q1",2003,"Fritz Klein","2003Q1","Healthcare2003Q1","Europe2003Q1","Fritz Klein2003Q1","Entera CRM2003Q1"]
["70","Customer70","Services","North America","Product1",600,389,"Q3",2004,"Porter Le","2004Q3","Services2004Q3","North America2004Q3","Porter Le2004Q3","Product12004Q3"]
["71","Customer71","Finance","North America","Product3",350,409,"Q2",2004,"Porter Le","2004Q2","Finance2004Q2","North America2004Q2","Porter Le2004Q2","Product32004Q2"]
["72","Customer72","Consumer Goods","Europe","Entera CRM",250,907,"Q1",2003,"Fritz Klein","2003Q1","Consumer Goods2003Q1","Europe2003Q1","Fritz Klein2003Q1","Entera CRM2003Q1"]
["73","Customer73","Materials","South America","Product2",100,928,"Q2",2005,"Nasim Hanson","2005Q2","Materials2005Q2","South America2005Q2","Nasim Hanson2005Q2","Product22005Q2"]
["74","Customer74","Industrial Goods","Asia Pacific","Product2",550,928,"Q3",2003,"Oren Chase","2003Q3","Industrial Goods2003Q3","Asia Pacific2003Q3","Oren Chase2003Q3","Product22003Q3"]
["75","Customer75","Materials","North America","Product2",100,271,"Q4",2007,"Porter Le","2007Q4","Materials2007Q4","North America2007Q4","Porter Le2007Q4","Product22007Q4"]
["76","Customer76","Healthcare","North America","Product3",500,468,"Q1",2007,"Porter Le","2007Q1","Healthcare2007Q1","North America2007Q1","Porter Le2007Q1","Product32007Q1"]
["77","Customer77","Finance","North America","Entera CRM",350,913,"Q3",2005,"Porter Le","2005Q3","Finance2005Q3","North America2005Q3","Porter Le2005Q3","Entera CRM2005Q3"]
["78","Customer78","Utilities","South America","Product1",700,438,"Q3",2005,"Nasim Hanson","2005Q3","Utilities2005Q3","South America2005Q3","Nasim Hanson2005Q3","Product12005Q3"]
["79","Customer79","Services","North America","Entera CRM",600,871,"Q4",2007,"Porter Le","2007Q4","Services2007Q4","North America2007Q4","Porter Le2007Q4","Entera CRM2007Q4"]
["80","Customer80","Materials","Asia Pacific","Entera CRM",150,969,"Q4",2004,"Oren Chase","2004Q4","Materials2004Q4","Asia Pacific2004Q4","Oren Chase2004Q4","Entera CRM2004Q4"]
["81","Customer81","Consumer Goods","Europe","Product4",250,959,"Q1",2007,"Fritz Klein","2007Q1","Consumer Goods2007Q1","Europe2007Q1","Fritz Klein2007Q1","Product42007Q1"]
["82","Customer82","Finance","North America","Product2",350,123,"Q1",2007,"Porter Le","2007Q1","Finance2007Q1","North America2007Q1","Porter Le2007Q1","Product22007Q1"]
["83","Customer83","Finance","Europe","Product3",350,714,"Q1",2004,"Fritz Klein","2004Q1","Finance2004Q1","Europe2004Q1","Fritz Klein2004Q1","Product32004Q1"]
["84","Customer84","Healthcare","North America","Product2",500,153,"Q2",2005,"Porter Le","2005Q2","Healthcare2005Q2","North America2005Q2","Porter Le2005Q2","Product22005Q2"]
["85","Customer85","Finance","North America","Product2",300,596,"Q3",2003,"Porter Le","2003Q3","Finance2003Q3","North America2003Q3","Porter Le2003Q3","Product22003Q3"]
["86","Customer86","Consumer Goods","North America","Product3",200,371,"Q3",2006,"Porter Le","2006Q3","Consumer Goods2006Q3","North America2006Q3","Porter Le2006Q3","Product32006Q3"]
["87","Customer87","Services","Asia Pacific","Product2",600,773,"Q4",2008,"Oren Chase","2008Q4","Services2008Q4","Asia Pacific2008Q4","Oren Chase2008Q4","Product22008Q4"]
["88","Customer88","Consumer Goods","Europe","Product3",200,828,"Q4",2008,"Fritz Klein","2008Q4","Consumer Goods2008Q4","Europe2008Q4","Fritz Klein2008Q4","Product32008Q4"]
["89","Customer89","Industrial Goods","Asia Pacific","Product1",500,877,"Q2",2003,"Oren Chase","2003Q2","Industrial Goods2003Q2","Asia Pacific2003Q2","Oren Chase2003Q2","Product12003Q2"]
["90","Customer90","Healthcare","North America","Entera CRM",500,228,"Q1",2003,"Porter Le","2003Q1","Healthcare2003Q1","North America2003Q1","Porter Le2003Q1","Entera CRM2003Q1"]
["91","Customer91","Healthcare","Europe","Product4",500,651,"Q4",2003,"Fritz Klein","2003Q4","Healthcare2003Q4","Europe2003Q4","Fritz Klein2003Q4","Product42003Q4"]
["92","Customer92","Finance","North America","Product1",400,718,"Q4",2004,"Porter Le","2004Q4","Finance2004Q4","North America2004Q4","Porter Le2004Q4","Product12004Q4"]
["93","Customer93","Services","North America","Product2",600,778,"Q4",2005,"Porter Le","2005Q4","Services2005Q4","North America2005Q4","Porter Le2005Q4","Product22005Q4"]
["94","Customer94","Utilities","North America","Entera CRM",700,461,"Q2",2005,"Porter Le","2005Q2","Utilities2005Q2","North America2005Q2","Porter Le2005Q2","Entera CRM2005Q2"]
["95","Customer95","Technology","Europe","Product3",650,49,"Q4",2005,"Fritz Klein","2005Q4","Technology2005Q4","Europe2005Q4","Fritz Klein2005Q4","Product32005Q4"]
["96","Customer96","Healthcare","North America","Product4",500,576,"Q3",2005,"Porter Le","2005Q3","Healthcare2005Q3","North America2005Q3","Porter Le2005Q3","Product42005Q3"]
["97","Customer97","Consumer Goods","Europe","Product4",200,579,"Q4",2006,"Fritz Klein","2006Q4","Consumer Goods2006Q4","Europe2006Q4","Fritz Klein2006Q4","Product42006Q4"]
["98","Customer98","Services","Asia Pacific","Entera CRM",600,449,"Q1",2003,"Oren Chase","2003Q1","Services2003Q1","Asia Pacific2003Q1","Oren Chase2003Q1","Entera CRM2003Q1"]
["99","Customer99","Finance","North America","Product2",350,516,"Q2",2003,"Porter Le","2003Q2","Finance2003Q2","North America2003Q2","Porter Le2003Q2","Product22003Q2"]
["100","Customer100","Materials","South America","Entera CRM",100,456,"Q4",2007,"Nasim Hanson","2007Q4","Materials2007Q4","South America2007Q4","Nasim Hanson2007Q4","Entera CRM2007Q4"]
["101","Customer101","Healthcare","North America","Product3",500,959,"Q2",2008,"Porter Le","2008Q2","Healthcare2008Q2","North America2008Q2","Porter Le2008Q2","Product32008Q2"]
["102","Customer102","Technology","Asia Pacific","Entera CRM",700,179,"Q4",2005,"Oren Chase","2005Q4","Technology2005Q4","Asia Pacific2005Q4","Oren Chase2005Q4","Entera CRM2005Q4"]
["103","Customer103","Finance","North America","Product2",300,848,"Q4",2003,"Porter Le","2003Q4","Finance2003Q4","North America2003Q4","Porter Le2003Q4","Product22003Q4"]
["104","Customer104","Consumer Goods","Asia Pacific","Product1",250,431,"Q1",2005,"Oren Chase","2005Q1","Consumer Goods2005Q1","Asia Pacific2005Q1","Oren Chase2005Q1","Product12005Q1"]
["105","Customer105","Finance","North America","Entera CRM",400,86,"Q4",2007,"Porter Le","2007Q4","Finance2007Q4","North America2007Q4","Porter Le2007Q4","Entera CRM2007Q4"]
["106","Customer106","Materials","Asia Pacific","Entera CRM",150,606,"Q4",2008,"Oren Chase","2008Q4","Materials2008Q4","Asia Pacific2008Q4","Oren Chase2008Q4","Entera CRM2008Q4"]
["107","Customer107","Consumer Goods","Europe","Product3",200,871,"Q3",2008,"Fritz Klein","2008Q3","Consumer Goods2008Q3","Europe2008Q3","Fritz Klein2008Q3","Product32008Q3"]
["108","Customer108","Healthcare","Europe","Product1",500,974,"Q2",2003,"Fritz Klein","2003Q2","Healthcare2003Q2","Europe2003Q2","Fritz Klein2003Q2","Product12003Q2"]
["109","Customer109","Consumer Goods","Europe","Product4",250,874,"Q4",2006,"Fritz Klein","2006Q4","Consumer Goods2006Q4","Europe2006Q4","Fritz Klein2006Q4","Product42006Q4"]
["110","Customer110","Healthcare","North America","Product4",500,362,"Q1",2007,"Porter Le","2007Q1","Healthcare2007Q1","North America2007Q1","Porter Le2007Q1","Product42007Q1"]
["111","Customer111","Consumer Goods","Europe","Entera CRM",250,848,"Q1",2007,"Fritz Klein","2007Q1","Consumer Goods2007Q1","Europe2007Q1","Fritz Klein2007Q1","Entera CRM2007Q1"]
["112","Customer112","Healthcare","North America","Product2",500,681,"Q2",2004,"Porter Le","2004Q2","Healthcare2004Q2","North America2004Q2","Porter Le2004Q2","Product22004Q2"]
["113","Customer113","Technology","Asia Pacific","Entera CRM",650,281,"Q3",2008,"Oren Chase","2008Q3","Technology2008Q3","Asia Pacific2008Q3","Oren Chase2008Q3","Entera CRM2008Q3"]
["114","Customer114","Healthcare","North America","Product1",500,487,"Q4",2003,"Porter Le","2003Q4","Healthcare2003Q4","North America2003Q4","Porter Le2003Q4","Product12003Q4"]
["115","Customer115","Services","Asia Pacific","Product1",600,491,"Q1",2006,"Oren Chase","2006Q1","Services2006Q1","Asia Pacific2006Q1","Oren Chase2006Q1","Product12006Q1"]
["116","Customer116","Healthcare","Asia Pacific","Product1",450,640,"Q4",2006,"Oren Chase","2006Q4","Healthcare2006Q4","Asia Pacific2006Q4","Oren Chase2006Q4","Product12006Q4"]
["117","Customer117","Consumer Goods","Asia Pacific","Entera CRM",250,892,"Q4",2008,"Oren Chase","2008Q4","Consumer Goods2008Q4","Asia Pacific2008Q4","Oren Chase2008Q4","Entera CRM2008Q4"]
["118","Customer118","Finance","North America","Product4",400,495,"Q4",2003,"Porter Le","2003Q4","Finance2003Q4","North America2003Q4","Porter Le2003Q4","Product42003Q4"]
["119","Customer119","Consumer Goods","Europe","Product4",200,984,"Q2",2006,"Fritz Klein","2006Q2","Consumer Goods2006Q2","Europe2006Q2","Fritz Klein2006Q2","Product42006Q2"]
["120","Customer120","Consumer Goods","Asia Pacific","Product4",250,719,"Q2",2005,"Oren Chase","2005Q2","Consumer Goods2005Q2","Asia Pacific2005Q2","Oren Chase2005Q2","Product42005Q2"]
["121","Customer121","Finance","North America","Product1",400,173,"Q4",2006,"Porter Le","2006Q4","Finance2006Q4","North America2006Q4","Porter Le2006Q4","Product12006Q4"]
["122","Customer122","Healthcare","North America","Product2",500,998,"Q4",2004,"Porter Le","2004Q4","Healthcare2004Q4","North America2004Q4","Porter Le2004Q4","Product22004Q4"]
["123","Customer123","Finance","Europe","Product4",350,358,"Q4",2008,"Fritz Klein","2008Q4","Finance2008Q4","Europe2008Q4","Fritz Klein2008Q4","Product42008Q4"]
["124","Customer124","Consumer Goods","Asia Pacific","Entera CRM",250,551,"Q4",2005,"Oren Chase","2005Q4","Consumer Goods2005Q4","Asia Pacific2005Q4","Oren Chase2005Q4","Entera CRM2005Q4"]
["125","Customer125","Consumer Goods","Europe","Product4",250,948,"Q3",2003,"Fritz Klein","2003Q3","Consumer Goods2003Q3","Europe2003Q3","Fritz Klein2003Q3","Product42003Q3"]
["126","Customer126","Finance","North America","Product4",350,122,"Q3",2007,"Porter Le","2007Q3","Finance2007Q3","North America2007Q3","Porter Le2007Q3","Product42007Q3"]
["127","Customer127","Healthcare","Asia Pacific","Product1",450,731,"Q4",2005,"Oren Chase","2005Q4","Healthcare2005Q4","Asia Pacific2005Q4","Oren Chase2005Q4","Product12005Q4"]
["128","Customer128","Materials","South America","Product1",100,95,"Q1",2003,"Nasim Hanson","2003Q1","Materials2003Q1","South America2003Q1","Nasim Hanson2003Q1","Product12003Q1"]
["129","Customer129","Consumer Goods","North America","Product4",300,602,"Q3",2004,"Porter Le","2004Q3","Consumer Goods2004Q3","North America2004Q3","Porter Le2004Q3","Product42004Q3"]
[{"$f":"IF(LEN(B131)=9,RIGHT(B131,1),IF(LEN(B131)=10,RIGHT(B131,2),RIGHT(B131,3)))","v":"130"},"Customer130","Healthcare","South America","Entera CRM",500,171,"Q1",2007,"Nasim Hanson","2007Q1","Healthcare2007Q1","South America2007Q1","Nasim Hanson2007Q1","Entera CRM2007Q1"]
["131","Customer131","Consumer Goods","North America","Product2",200,415,"Q3",2003,"Porter Le","2003Q3","Consumer Goods2003Q3","North America2003Q3","Porter Le2003Q3","Product22003Q3"]
["132","Customer132","Consumer Goods","Asia Pacific","Product1",250,254,"Q3",2004,"Oren Chase","2004Q3","Consumer Goods2004Q3","Asia Pacific2004Q3","Oren Chase2004Q3","Product12004Q3"]
["133","Customer133","Consumer Goods","North America","Product3",300,454,"Q3",2003,"Porter Le","2003Q3","Consumer Goods2003Q3","North America2003Q3","Porter Le2003Q3","Product32003Q3"]
["134","Customer134","Finance","Europe","Product2",400,511,"Q3",2005,"Fritz Klein","2005Q3","Finance2005Q3","Europe2005Q3","Fritz Klein2005Q3","Product22005Q3"]
["135","Customer135","Finance","North America","Entera CRM",350,316,"Q3",2005,"Porter Le","2005Q3","Finance2005Q3","North America2005Q3","Porter Le2005Q3","Entera CRM2005Q3"]
["136","Customer136","Technology","Asia Pacific","Product1",650,838,"Q2",2004,"Oren Chase","2004Q2","Technology2004Q2","Asia Pacific2004Q2","Oren Chase2004Q2","Product12004Q2"]
["137","Customer137","Healthcare","South America","Product4",450,804,"Q3",2007,"Nasim Hanson","2007Q3","Healthcare2007Q3","South America2007Q3","Nasim Hanson2007Q3","Product42007Q3"]
["138","Customer138","Consumer Goods","North America","Product4",300,881,"Q3",2006,"Porter Le","2006Q3","Consumer Goods2006Q3","North America2006Q3","Porter Le2006Q3","Product42006Q3"]
["139","Customer139","Materials","North America","Product1",100,111,"Q2",2003,"Porter Le","2003Q2","Materials2003Q2","North America2003Q2","Porter Le2003Q2","Product12003Q2"]
["140","Customer140","Finance","Europe","Product3",350,651,"Q3",2008,"Fritz Klein","2008Q3","Finance2008Q3","Europe2008Q3","Fritz Klein2008Q3","Product32008Q3"]
["141","Customer141","Consumer Goods","Europe","Product4",250,925,"Q1",2003,"Fritz Klein","2003Q1","Consumer Goods2003Q1","Europe2003Q1","Fritz Klein2003Q1","Product42003Q1"]
["142","Customer142","Technology","Europe","Entera CRM",650,183,"Q4",2003,"Fritz Klein","2003Q4","Technology2003Q4","Europe2003Q4","Fritz Klein2003Q4","Entera CRM2003Q4"]
["143","Customer143","Materials","South America","Entera CRM",100,590,"Q2",2007,"Nasim Hanson","2007Q2","Materials2007Q2","South America2007Q2","Nasim Hanson2007Q2","Entera CRM2007Q2"]
["144","Customer144","Finance","Europe","Entera CRM",350,951,"Q2",2007,"Fritz Klein","2007Q2","Finance2007Q2","Europe2007Q2","Fritz Klein2007Q2","Entera CRM2007Q2"]
["145","Customer145","Services","North America","Entera CRM",550,694,"Q3",2008,"Porter Le","2008Q3","Services2008Q3","North America2008Q3","Porter Le2008Q3","Entera CRM2008Q3"]
["146","Customer146","Services","North America","Product3",550,235,"Q3",2006,"Porter Le","2006Q3","Services2006Q3","North America2006Q3","Porter Le2006Q3","Product32006Q3"]
["147","Customer147","Consumer Goods","Europe","Product3",250,622,"Q2",2003,"Fritz Klein","2003Q2","Consumer Goods2003Q2","Europe2003Q2","Fritz Klein2003Q2","Product32003Q2"]
["148","Customer148","Finance","North America","Product2",350,237,"Q2",2008,"Porter Le","2008Q2","Finance2008Q2","North America2008Q2","Porter Le2008Q2","Product22008Q2"]
["149","Customer149","Finance","North America","Product2",300,98,"Q1",2003,"Porter Le","2003Q1","Finance2003Q1","North America2003Q1","Porter Le2003Q1","Product22003Q1"]
["150","Customer150","Services","North America","Product4",550,868,"Q4",2003,"Porter Le","2003Q4","Services2003Q4","North America2003Q4","Porter Le2003Q4","Product42003Q4"]
["151","Customer151","Materials","North America","Product1",100,77,"Q2",2006,"Porter Le","2006Q2","Materials2006Q2","North America2006Q2","Porter Le2006Q2","Product12006Q2"]
["152","Customer152","Materials","Middle East","Product1",150,420,"Q3",2004,"Bradley Valenzuela","2004Q3","Materials2004Q3","Middle East2004Q3","Bradley Valenzuela2004Q3","Product12004Q3"]
["153","Customer153","Materials","South America","Product1",100,949,"Q1",2003,"Nasim Hanson","2003Q1","Materials2003Q1","South America2003Q1","Nasim Hanson2003Q1","Product12003Q1"]
["154","Customer154","Consumer Goods","Asia Pacific","Product3",250,930,"Q3",2005,"Oren Chase","2005Q3","Consumer Goods2005Q3","Asia Pacific2005Q3","Oren Chase2005Q3","Product32005Q3"]
["155","Customer155","Finance","North America","Product2",300,242,"Q1",2003,"Porter Le","2003Q1","Finance2003Q1","North America2003Q1","Porter Le2003Q1","Product22003Q1"]
["156","Customer156","Utilities","North America","Product1",700,273,"Q2",2005,"Porter Le","2005Q2","Utilities2005Q2","North America2005Q2","Porter Le2005Q2","Product12005Q2"]
["157","Customer157","Finance","Europe","Entera CRM",400,161,"Q2",2005,"Fritz Klein","2005Q2","Finance2005Q2","Europe2005Q2","Fritz Klein2005Q2","Entera CRM2005Q2"]
["158","Customer158","Finance","North America","Product1",400,152,"Q4",2005,"Porter Le","2005Q4","Finance2005Q4","North America2005Q4","Porter Le2005Q4","Product12005Q4"]
["159","Customer159","Finance","Europe","Product3",350,700,"Q3",2008,"Fritz Klein","2008Q3","Finance2008Q3","Europe2008Q3","Fritz Klein2008Q3","Product32008Q3"]
["160","Customer160","Consumer Goods","North America","Product2",300,633,"Q3",2006,"Porter Le","2006Q3","Consumer Goods2006Q3","North America2006Q3","Porter Le2006Q3","Product22006Q3"]
["161","Customer161","Materials","South America","Product4",100,670,"Q3",2003,"Nasim Hanson","2003Q3","Materials2003Q3","South America2003Q3","Nasim Hanson2003Q3","Product42003Q3"]
["162","Customer162","Technology","North America","Product1",650,918,"Q4",2004,"Porter Le","2004Q4","Technology2004Q4","North America2004Q4","Porter Le2004Q4","Product12004Q4"]
["163","Customer163","Healthcare","North America","Entera CRM",500,287,"Q1",2005,"Porter Le","2005Q1","Healthcare2005Q1","North America2005Q1","Porter Le2005Q1","Entera CRM2005Q1"]
["164","Customer164","Services","Asia Pacific","Product1",600,24,"Q3",2003,"Oren Chase","2003Q3","Services2003Q3","Asia Pacific2003Q3","Oren Chase2003Q3","Product12003Q3"]
["165","Customer165","Materials","Asia Pacific","Product1",150,620,"Q3",2008,"Oren Chase","2008Q3","Materials2008Q3","Asia Pacific2008Q3","Oren Chase2008Q3","Product12008Q3"]
["166","Customer166","Services","Asia Pacific","Product3",600,334,"Q2",2005,"Oren Chase","2005Q2","Services2005Q2","Asia Pacific2005Q2","Oren Chase2005Q2","Product32005Q2"]
["167","Customer167","Healthcare","Asia Pacific","Product3",450,920,"Q4",2005,"Oren Chase","2005Q4","Healthcare2005Q4","Asia Pacific2005Q4","Oren Chase2005Q4","Product32005Q4"]
["168","Customer168","Finance","Asia Pacific","Product1",450,255,"Q4",2003,"Oren Chase","2003Q4","Finance2003Q4","Asia Pacific2003Q4","Oren Chase2003Q4","Product12003Q4"]
["169","Customer169","Consumer Goods","North America","Product1",300,525,"Q4",2005,"Porter Le","2005Q4","Consumer Goods2005Q4","North America2005Q4","Porter Le2005Q4","Product12005Q4"]
["170","Customer170","Healthcare","Asia Pacific","Product4",450,897,"Q2",2007,"Oren Chase","2007Q2","Healthcare2007Q2","Asia Pacific2007Q2","Oren Chase2007Q2","Product42007Q2"]
["171","Customer171","Consumer Goods","Europe","Entera CRM",200,973,"Q1",2003,"Fritz Klein","2003Q1","Consumer Goods2003Q1","Europe2003Q1","Fritz Klein2003Q1","Entera CRM2003Q1"]
["172","Customer172","Finance","North America","Product2",350,530,"Q4",2004,"Porter Le","2004Q4","Finance2004Q4","North America2004Q4","Porter Le2004Q4","Product22004Q4"]
["173","Customer173","Consumer Goods","Europe","Product1",250,985,"Q2",2007,"Fritz Klein","2007Q2","Consumer Goods2007Q2","Europe2007Q2","Fritz Klein2007Q2","Product12007Q2"]
["174","Customer174","Consumer Goods","Asia Pacific","Product4",250,193,"Q2",2006,"Oren Chase","2006Q2","Consumer Goods2006Q2","Asia Pacific2006Q2","Oren Chase2006Q2","Product42006Q2"]
["175","Customer175","Materials","South America","Product1",100,201,"Q1",2006,"Nasim Hanson","2006Q1","Materials2006Q1","South America2006Q1","Nasim Hanson2006Q1","Product12006Q1"]
["176","Customer176","Consumer Goods","Asia Pacific","Product4",250,929,"Q4",2004,"Oren Chase","2004Q4","Consumer Goods2004Q4","Asia Pacific2004Q4","Oren Chase2004Q4","Product42004Q4"]
["177","Customer177","Services","North America","Product1",550,442,"Q4",2005,"Porter Le","2005Q4","Services2005Q4","North America2005Q4","Porter Le2005Q4","Product12005Q4"]
["178","Customer178","Healthcare","North America","Product1",500,62,"Q4",2003,"Porter Le","2003Q4","Healthcare2003Q4","North America2003Q4","Porter Le2003Q4","Product12003Q4"]
["179","Customer179","Finance","North America","Product4",300,731,"Q4",2003,"Porter Le","2003Q4","Finance2003Q4","North America2003Q4","Porter Le2003Q4","Product42003Q4"]
["180","Customer180","Healthcare","Asia Pacific","Product2",450,62,"Q2",2008,"Oren Chase","2008Q2","Healthcare2008Q2","Asia Pacific2008Q2","Oren Chase2008Q2","Product22008Q2"]
["181","Customer181","Services","North America","Product2",550,190,"Q4",2003,"Porter Le","2003Q4","Services2003Q4","North America2003Q4","Porter Le2003Q4","Product22003Q4"]
["182","Customer182","Technology","North America","Product1",650,159,"Q1",2007,"Porter Le","2007Q1","Technology2007Q1","North America2007Q1","Porter Le2007Q1","Product12007Q1"]
["183","Customer183","Technology","Europe","Product2",650,263,"Q4",2006,"Fritz Klein","2006Q4","Technology2006Q4","Europe2006Q4","Fritz Klein2006Q4","Product22006Q4"]
["184","Customer184","Finance","Europe","Product4",350,284,"Q4",2006,"Fritz Klein","2006Q4","Finance2006Q4","Europe2006Q4","Fritz Klein2006Q4","Product42006Q4"]
["185","Customer185","Finance","North America","Product3",300,865,"Q4",2003,"Porter Le","2003Q4","Finance2003Q4","North America2003Q4","Porter Le2003Q4","Product32003Q4"]
["186","Customer186","Materials","North America","Product4",100,517,"Q4",2003,"Porter Le","2003Q4","Materials2003Q4","North America2003Q4","Porter Le2003Q4","Product42003Q4"]
["187","Customer187","Services","North America","Product4",550,166,"Q3",2004,"Porter Le","2004Q3","Services2004Q3","North America2004Q3","Porter Le2004Q3","Product42004Q3"]
["188","Customer188","Materials","South America","Product1",100,371,"Q3",2003,"Nasim Hanson","2003Q3","Materials2003Q3","South America2003Q3","Nasim Hanson2003Q3","Product12003Q3"]
["189","Customer189","Materials","Middle East","Product3",150,533,"Q4",2004,"Bradley Valenzuela","2004Q4","Materials2004Q4","Middle East2004Q4","Bradley Valenzuela2004Q4","Product32004Q4"]
["190","Customer190","Healthcare","South America","Entera CRM",500,223,"Q4",2008,"Nasim Hanson","2008Q4","Healthcare2008Q4","South America2008Q4","Nasim Hanson2008Q4","Entera CRM2008Q4"]
["191","Customer191","Consumer Goods","Europe","Product3",200,74,"Q4",2006,"Fritz Klein","2006Q4","Consumer Goods2006Q4","Europe2006Q4","Fritz Klein2006Q4","Product32006Q4"]
["192","Customer192","Finance","Europe","Entera CRM",400,157,"Q4",2006,"Fritz Klein","2006Q4","Finance2006Q4","Europe2006Q4","Fritz Klein2006Q4","Entera CRM2006Q4"]
["193","Customer193","Technology","North America","Entera CRM",650,655,"Q2",2007,"Porter Le","2007Q2","Technology2007Q2","North America2007Q2","Porter Le2007Q2","Entera CRM2007Q2"]
[{"$f":"IF(LEN(B195)=9,RIGHT(B195,1),IF(LEN(B195)=10,RIGHT(B195,2),RIGHT(B195,3)))","v":"194"},"Customer194","Services","North America","Entera CRM",550,305,"Q3",2004,"Porter Le","2004Q3","Services2004Q3","North America2004Q3","Porter Le2004Q3","Entera CRM2004Q3"]
["195","Customer195","Services","North America","Product1",550,694,"Q3",2007,"Porter Le","2007Q3","Services2007Q3","North America2007Q3","Porter Le2007Q3","Product12007Q3"]
["196","Customer196","Materials","South America","Product2",100,835,"Q1",2004,"Nasim Hanson","2004Q1","Materials2004Q1","South America2004Q1","Nasim Hanson2004Q1","Product22004Q1"]
["197","Customer197","Consumer Goods","Europe","Product1",250,832,"Q4",2006,"Fritz Klein","2006Q4","Consumer Goods2006Q4","Europe2006Q4","Fritz Klein2006Q4","Product12006Q4"]
["198","Customer198","Finance","Europe","Product2",350,272,"Q2",2007,"Fritz Klein","2007Q2","Finance2007Q2","Europe2007Q2","Fritz Klein2007Q2","Product22007Q2"]
["199","Customer199","Consumer Goods","Europe","Product4",200,776,"Q1",2005,"Fritz Klein","2005Q1","Consumer Goods2005Q1","Europe2005Q1","Fritz Klein2005Q1","Product42005Q1"]
["200","Customer200","Materials","South America","Product2",100,208,"Q3",2003,"Nasim Hanson","2003Q3","Materials2003Q3","South America2003Q3","Nasim Hanson2003Q3","Product22003Q3"]
["201","Customer201","Finance","Europe","Product2",350,36,"Q4",2003,"Fritz Klein","2003Q4","Finance2003Q4","Europe2003Q4","Fritz Klein2003Q4","Product22003Q4"]
["202","Customer202","Consumer Goods","Asia Pacific","Entera CRM",250,816,"Q3",2004,"Oren Chase","2004Q3","Consumer Goods2004Q3","Asia Pacific2004Q3","Oren Chase2004Q3","Entera CRM2004Q3"]
["203","Customer203","Consumer Goods","Europe","Entera CRM",250,680,"Q3",2008,"Fritz Klein","2008Q3","Consumer Goods2008Q3","Europe2008Q3","Fritz Klein2008Q3","Entera CRM2008Q3"]
["204","Customer204","Services","North America","Product4",600,963,"Q4",2006,"Porter Le","2006Q4","Services2006Q4","North America2006Q4","Porter Le2006Q4","Product42006Q4"]
["205","Customer205","Industrial Goods","Asia Pacific","Entera CRM",550,369,"Q2",2005,"Oren Chase","2005Q2","Industrial Goods2005Q2","Asia Pacific2005Q2","Oren Chase2005Q2","Entera CRM2005Q2"]
["206","Customer206","Materials","Middle East","Product1",150,847,"Q4",2008,"Bradley Valenzuela","2008Q4","Materials2008Q4","Middle East2008Q4","Bradley Valenzuela2008Q4","Product12008Q4"]
["207","Customer207","Healthcare","Asia Pacific","Entera CRM",450,476,"Q4",2003,"Oren Chase","2003Q4","Healthcare2003Q4","Asia Pacific2003Q4","Oren Chase2003Q4","Entera CRM2003Q4"]
["208","Customer208","Healthcare","Europe","Product4",500,291,"Q1",2006,"Fritz Klein","2006Q1","Healthcare2006Q1","Europe2006Q1","Fritz Klein2006Q1","Product42006Q1"]
["209","Customer209","Services","North America","Product3",600,312,"Q4",2005,"Porter Le","2005Q4","Services2005Q4","North America2005Q4","Porter Le2005Q4","Product32005Q4"]
["210","Customer210","Services","North America","Product3",600,407,"Q2",2003,"Porter Le","2003Q2","Services2003Q2","North America2003Q2","Porter Le2003Q2","Product32003Q2"]
["211","Customer211","Technology","Europe","Product3",650,171,"Q1",2007,"Fritz Klein","2007Q1","Technology2007Q1","Europe2007Q1","Fritz Klein2007Q1","Product32007Q1"]
["212","Customer212","Finance","North America","Product1",400,466,"Q1",2003,"Porter Le","2003Q1","Finance2003Q1","North America2003Q1","Porter Le2003Q1","Product12003Q1"]
["213","Customer213","Technology","Europe","Entera CRM",650,283,"Q2",2004,"Fritz Klein","2004Q2","Technology2004Q2","Europe2004Q2","Fritz Klein2004Q2","Entera CRM2004Q2"]
["214","Customer214","Materials","Middle East","Product1",150,276,"Q2",2003,"Bradley Valenzuela","2003Q2","Materials2003Q2","Middle East2003Q2","Bradley Valenzuela2003Q2","Product12003Q2"]
["215","Customer215","Healthcare","Europe","Product3",500,70,"Q4",2003,"Fritz Klein","2003Q4","Healthcare2003Q4","Europe2003Q4","Fritz Klein2003Q4","Product32003Q4"]
["216","Customer216","Services","North America","Product4",600,349,"Q4",2005,"Porter Le","2005Q4","Services2005Q4","North America2005Q4","Porter Le2005Q4","Product42005Q4"]
["217","Customer217","Services","Asia Pacific","Entera CRM",600,982,"Q1",2007,"Oren Chase","2007Q1","Services2007Q1","Asia Pacific2007Q1","Oren Chase2007Q1","Entera CRM2007Q1"]
["218","Customer218","Services","North America","Product1",550,645,"Q3",2007,"Porter Le","2007Q3","Services2007Q3","North America2007Q3","Porter Le2007Q3","Product12007Q3"]
["219","Customer219","Technology","Europe","Entera CRM",650,763,"Q2",2006,"Fritz Klein","2006Q2","Technology2006Q2","Europe2006Q2","Fritz Klein2006Q2","Entera CRM2006Q2"]
["220","Customer220","Services","North America","Entera CRM",550,673,"Q3",2007,"Porter Le","2007Q3","Services2007Q3","North America2007Q3","Porter Le2007Q3","Entera CRM2007Q3"]
["221","Customer221","Consumer Goods","North America","Product3",200,654,"Q3",2006,"Porter Le","2006Q3","Consumer Goods2006Q3","North America2006Q3","Porter Le2006Q3","Product32006Q3"]
["222","Customer222","Healthcare","South America","Product2",450,118,"Q3",2005,"Nasim Hanson","2005Q3","Healthcare2005Q3","South America2005Q3","Nasim Hanson2005Q3","Product22005Q3"]
["223","Customer223","Consumer Goods","Europe","Product2",200,41,"Q4",2003,"Fritz Klein","2003Q4","Consumer Goods2003Q4","Europe2003Q4","Fritz Klein2003Q4","Product22003Q4"]
["224","Customer224","Consumer Goods","North America","Product2",200,959,"Q2",2005,"Porter Le","2005Q2","Consumer Goods2005Q2","North America2005Q2","Porter Le2005Q2","Product22005Q2"]
["225","Customer225","Services","Asia Pacific","Entera CRM",600,451,"Q1",2005,"Oren Chase","2005Q1","Services2005Q1","Asia Pacific2005Q1","Oren Chase2005Q1","Entera CRM2005Q1"]
["226","Customer226","Technology","Asia Pacific","Product3",650,134,"Q3",2005,"Oren Chase","2005Q3","Technology2005Q3","Asia Pacific2005Q3","Oren Chase2005Q3","Product32005Q3"]
["227","Customer227","Services","North America","Product4",600,619,"Q3",2006,"Porter Le","2006Q3","Services2006Q3","North America2006Q3","Porter Le2006Q3","Product42006Q3"]
["228","Customer228","Technology","North America","Product3",650,716,"Q2",2003,"Porter Le","2003Q2","Technology2003Q2","North America2003Q2","Porter Le2003Q2","Product32003Q2"]
["229","Customer229","Finance","North America","Product1",350,306,"Q4",2007,"Porter Le","2007Q4","Finance2007Q4","North America2007Q4","Porter Le2007Q4","Product12007Q4"]
["230","Customer230","Technology","North America","Product2",650,350,"Q4",2005,"Porter Le","2005Q4","Technology2005Q4","North America2005Q4","Porter Le2005Q4","Product22005Q4"]
["231","Customer231","Consumer Goods","Europe","Entera CRM",200,259,"Q2",2007,"Fritz Klein","2007Q2","Consumer Goods2007Q2","Europe2007Q2","Fritz Klein2007Q2","Entera CRM2007Q2"]
["232","Customer232","Materials","North America","Product2",100,315,"Q2",2008,"Porter Le","2008Q2","Materials2008Q2","North America2008Q2","Porter Le2008Q2","Product22008Q2"]
["233","Customer233","Healthcare","Europe","Product3",500,159,"Q4",2006,"Fritz Klein","2006Q4","Healthcare2006Q4","Europe2006Q4","Fritz Klein2006Q4","Product32006Q4"]
["234","Customer234","Healthcare","North America","Product2",500,135,"Q4",2005,"Porter Le","2005Q4","Healthcare2005Q4","North America2005Q4","Porter Le2005Q4","Product22005Q4"]
["235","Customer235","Utilities","South America","Product2",700,622,"Q4",2005,"Nasim Hanson","2005Q4","Utilities2005Q4","South America2005Q4","Nasim Hanson2005Q4","Product22005Q4"]
["236","Customer236","Healthcare","North America","Product4",500,864,"Q3",2004,"Porter Le","2004Q3","Healthcare2004Q3","North America2004Q3","Porter Le2004Q3","Product42004Q3"]
["237","Customer237","Materials","Europe","Entera CRM",150,74,"Q4",2006,"Fritz Klein","2006Q4","Materials2006Q4","Europe2006Q4","Fritz Klein2006Q4","Entera CRM2006Q4"]
["238","Customer238","Healthcare","North America","Product1",500,638,"Q3",2007,"Porter Le","2007Q3","Healthcare2007Q3","North America2007Q3","Porter Le2007Q3","Product12007Q3"]
["239","Customer239","Technology","Asia Pacific","Product2",650,849,"Q4",2005,"Oren Chase","2005Q4","Technology2005Q4","Asia Pacific2005Q4","Oren Chase2005Q4","Product22005Q4"]
["240","Customer240","Materials","North America","Entera CRM",100,850,"Q4",2006,"Porter Le","2006Q4","Materials2006Q4","North America2006Q4","Porter Le2006Q4","Entera CRM2006Q4"]
["241","Customer241","Utilities","South America","Product2",700,903,"Q2",2007,"Nasim Hanson","2007Q2","Utilities2007Q2","South America2007Q2","Nasim Hanson2007Q2","Product22007Q2"]
["242","Customer242","Services","North America","Product4",550,305,"Q4",2005,"Porter Le","2005Q4","Services2005Q4","North America2005Q4","Porter Le2005Q4","Product42005Q4"]
["243","Customer243","Services","North America","Entera CRM",550,445,"Q3",2005,"Porter Le","2005Q3","Services2005Q3","North America2005Q3","Porter Le2005Q3","Entera CRM2005Q3"]
["244","Customer244","Technology","North America","Product1",650,982,"Q4",2003,"Porter Le","2003Q4","Technology2003Q4","North America2003Q4","Porter Le2003Q4","Product12003Q4"]
["245","Customer245","Utilities","South America","Product2",700,814,"Q2",2006,"Nasim Hanson","2006Q2","Utilities2006Q2","South America2006Q2","Nasim Hanson2006Q2","Product22006Q2"]
["246","Customer246","Technology","Asia Pacific","Product1",650,770,"Q1",2006,"Oren Chase","2006Q1","Technology2006Q1","Asia Pacific2006Q1","Oren Chase2006Q1","Product12006Q1"]
["247","Customer247","Finance","North America","Product1",400,168,"Q4",2006,"Porter Le","2006Q4","Finance2006Q4","North America2006Q4","Porter Le2006Q4","Product12006Q4"]
["248","Customer248","Materials","Middle East","Product1",150,723,"Q2",2008,"Bradley Valenzuela","2008Q2","Materials2008Q2","Middle East2008Q2","Bradley Valenzuela2008Q2","Product12008Q2"]
["249","Customer249","Consumer Goods","Asia Pacific","Product2",250,970,"Q4",2003,"Oren Chase","2003Q4","Consumer Goods2003Q4","Asia Pacific2003Q4","Oren Chase2003Q4","Product22003Q4"]
["250","Customer250","Materials","Europe","Product3",150,177,"Q4",2003,"Fritz Klein","2003Q4","Materials2003Q4","Europe2003Q4","Fritz Klein2003Q4","Product32003Q4"]
["251","Customer251","Technology","Asia Pacific","Entera CRM",650,43,"Q3",2004,"Oren Chase","2004Q3","Technology2004Q3","Asia Pacific2004Q3","Oren Chase2004Q3","Entera CRM2004Q3"]
["252","Customer252","Materials","North America","Entera CRM",100,232,"Q3",2006,"Porter Le","2006Q3","Materials2006Q3","North America2006Q3","Porter Le2006Q3","Entera CRM2006Q3"]
["253","Customer253","Technology","Asia Pacific","Product4",700,511,"Q4",2006,"Oren Chase","2006Q4","Technology2006Q4","Asia Pacific2006Q4","Oren Chase2006Q4","Product42006Q4"]
["254","Customer254","Technology","North America","Product1",650,277,"Q2",2004,"Porter Le","2004Q2","Technology2004Q2","North America2004Q2","Porter Le2004Q2","Product12004Q2"]
["255","Customer255","Technology","Asia Pacific","Product3",650,689,"Q2",2005,"Oren Chase","2005Q2","Technology2005Q2","Asia Pacific2005Q2","Oren Chase2005Q2","Product32005Q2"]
["256","Customer256","Services","Asia Pacific","Product2",600,855,"Q1",2008,"Oren Chase","2008Q1","Services2008Q1","Asia Pacific2008Q1","Oren Chase2008Q1","Product22008Q1"]
["257","Customer257","Consumer Goods","Europe","Product3",250,692,"Q2",2006,"Fritz Klein","2006Q2","Consumer Goods2006Q2","Europe2006Q2","Fritz Klein2006Q2","Product32006Q2"]
[{"$f":"IF(LEN(B259)=9,RIGHT(B259,1),IF(LEN(B259)=10,RIGHT(B259,2),RIGHT(B259,3)))","v":"258"},"Customer258","Services","North America","Entera CRM",550,693,"Q1",2006,"Porter Le","2006Q1","Services2006Q1","North America2006Q1","Porter Le2006Q1","Entera CRM2006Q1"]
["259","Customer259","Utilities","South America","Product2",700,579,"Q4",2004,"Nasim Hanson","2004Q4","Utilities2004Q4","South America2004Q4","Nasim Hanson2004Q4","Product22004Q4"]
["260","Customer260","Services","Asia Pacific","Entera CRM",600,884,"Q3",2003,"Oren Chase","2003Q3","Services2003Q3","Asia Pacific2003Q3","Oren Chase2003Q3","Entera CRM2003Q3"]
["261","Customer261","Utilities","North America","Entera CRM",700,240,"Q1",2007,"Porter Le","2007Q1","Utilities2007Q1","North America2007Q1","Porter Le2007Q1","Entera CRM2007Q1"]
["262","Customer262","Healthcare","Asia Pacific","Product3",450,442,"Q3",2005,"Oren Chase","2005Q3","Healthcare2005Q3","Asia Pacific2005Q3","Oren Chase2005Q3","Product32005Q3"]
["263","Customer263","Consumer Goods","North America","Entera CRM",300,536,"Q2",2003,"Porter Le","2003Q2","Consumer Goods2003Q2","North America2003Q2","Porter Le2003Q2","Entera CRM2003Q2"]
["264","Customer264","Services","North America","Product1",600,849,"Q4",2003,"Porter Le","2003Q4","Services2003Q4","North America2003Q4","Porter Le2003Q4","Product12003Q4"]
["265","Customer265","Finance","North America","Product3",350,466,"Q3",2005,"Porter Le","2005Q3","Finance2005Q3","North America2005Q3","Porter Le2005Q3","Product32005Q3"]
["266","Customer266","Consumer Goods","North America","Entera CRM",200,681,"Q2",2004,"Porter Le","2004Q2","Consumer Goods2004Q2","North America2004Q2","Porter Le2004Q2","Entera CRM2004Q2"]
["267","Customer267","Finance","North America","Product1",350,380,"Q4",2004,"Porter Le","2004Q4","Finance2004Q4","North America2004Q4","Porter Le2004Q4","Product12004Q4"]
["268","Customer268","Finance","North America","Product3",350,814,"Q1",2003,"Porter Le","2003Q1","Finance2003Q1","North America2003Q1","Porter Le2003Q1","Product32003Q1"]
["269","Customer269","Consumer Goods","Asia Pacific","Product1",250,639,"Q4",2007,"Oren Chase","2007Q4","Consumer Goods2007Q4","Asia Pacific2007Q4","Oren Chase2007Q4","Product12007Q4"]
["270","Customer270","Utilities","South America","Product3",700,516,"Q1",2008,"Nasim Hanson","2008Q1","Utilities2008Q1","South America2008Q1","Nasim Hanson2008Q1","Product32008Q1"]
["271","Customer271","Technology","North America","Product1",650,199,"Q1",2004,"Porter Le","2004Q1","Technology2004Q1","North America2004Q1","Porter Le2004Q1","Product12004Q1"]
["272","Customer272","Consumer Goods","Asia Pacific","Entera CRM",250,971,"Q4",2004,"Oren Chase","2004Q4","Consumer Goods2004Q4","Asia Pacific2004Q4","Oren Chase2004Q4","Entera CRM2004Q4"]
["273","Customer273","Technology","Europe","Product3",650,472,"Q3",2003,"Fritz Klein","2003Q3","Technology2003Q3","Europe2003Q3","Fritz Klein2003Q3","Product32003Q3"]
["274","Customer274","Healthcare","Europe","Product2",500,910,"Q1",2008,"Fritz Klein","2008Q1","Healthcare2008Q1","Europe2008Q1","Fritz Klein2008Q1","Product22008Q1"]
["275","Customer275","Consumer Goods","Europe","Product2",200,103,"Q1",2005,"Fritz Klein","2005Q1","Consumer Goods2005Q1","Europe2005Q1","Fritz Klein2005Q1","Product22005Q1"]
["276","Customer276","Consumer Goods","North America","Entera CRM",300,506,"Q1",2005,"Porter Le","2005Q1","Consumer Goods2005Q1","North America2005Q1","Porter Le2005Q1","Entera CRM2005Q1"]
["277","Customer277","Healthcare","Europe","Product1",500,455,"Q1",2008,"Fritz Klein","2008Q1","Healthcare2008Q1","Europe2008Q1","Fritz Klein2008Q1","Product12008Q1"]
["278","Customer278","Finance","Europe","Product1",350,572,"Q2",2004,"Fritz Klein","2004Q2","Finance2004Q2","Europe2004Q2","Fritz Klein2004Q2","Product12004Q2"]
["279","Customer279","Consumer Goods","North America","Product1",300,506,"Q2",2003,"Porter Le","2003Q2","Consumer Goods2003Q2","North America2003Q2","Porter Le2003Q2","Product12003Q2"]
["280","Customer280","Consumer Goods","North America","Entera CRM",200,584,"Q1",2008,"Porter Le","2008Q1","Consumer Goods2008Q1","North America2008Q1","Porter Le2008Q1","Entera CRM2008Q1"]
["281","Customer281","Materials","Europe","Product4",100,791,"Q1",2008,"Fritz Klein","2008Q1","Materials2008Q1","Europe2008Q1","Fritz Klein2008Q1","Product42008Q1"]
["282","Customer282","Utilities","South America","Entera CRM",700,163,"Q4",2006,"Nasim Hanson","2006Q4","Utilities2006Q4","South America2006Q4","Nasim Hanson2006Q4","Entera CRM2006Q4"]
["283","Customer283","Materials","Asia Pacific","Product2",150,665,"Q4",2006,"Oren Chase","2006Q4","Materials2006Q4","Asia Pacific2006Q4","Oren Chase2006Q4","Product22006Q4"]
["284","Customer284","Finance","North America","Product4",300,569,"Q2",2007,"Porter Le","2007Q2","Finance2007Q2","North America2007Q2","Porter Le2007Q2","Product42007Q2"]
["285","Customer285","Consumer Goods","North America","Entera CRM",300,825,"Q2",2004,"Porter Le","2004Q2","Consumer Goods2004Q2","North America2004Q2","Porter Le2004Q2","Entera CRM2004Q2"]
["286","Customer286","Industrial Goods","Asia Pacific","Product4",550,166,"Q3",2004,"Oren Chase","2004Q3","Industrial Goods2004Q3","Asia Pacific2004Q3","Oren Chase2004Q3","Product42004Q3"]
["287","Customer287","Healthcare","Asia Pacific","Product4",450,524,"Q2",2008,"Oren Chase","2008Q2","Healthcare2008Q2","Asia Pacific2008Q2","Oren Chase2008Q2","Product42008Q2"]
["288","Customer288","Healthcare","Asia Pacific","Product4",450,617,"Q2",2006,"Oren Chase","2006Q2","Healthcare2006Q2","Asia Pacific2006Q2","Oren Chase2006Q2","Product42006Q2"]
["289","Customer289","Utilities","North America","Product4",700,609,"Q1",2006,"Porter Le","2006Q1","Utilities2006Q1","North America2006Q1","Porter Le2006Q1","Product42006Q1"]
["290","Customer290","Finance","North America","Product1",400,396,"Q4",2005,"Porter Le","2005Q4","Finance2005Q4","North America2005Q4","Porter Le2005Q4","Product12005Q4"]
["291","Customer291","Healthcare","Asia Pacific","Product2",450,330,"Q2",2006,"Oren Chase","2006Q2","Healthcare2006Q2","Asia Pacific2006Q2","Oren Chase2006Q2","Product22006Q2"]
["292","Customer292","Consumer Goods","North America","Product1",300,507,"Q2",2007,"Porter Le","2007Q2","Consumer Goods2007Q2","North America2007Q2","Porter Le2007Q2","Product12007Q2"]
["293","Customer293","Technology","North America","Product4",650,727,"Q3",2003,"Porter Le","2003Q3","Technology2003Q3","North America2003Q3","Porter Le2003Q3","Product42003Q3"]
["294","Customer294","Technology","North America","Product4",650,419,"Q2",2003,"Porter Le","2003Q2","Technology2003Q2","North America2003Q2","Porter Le2003Q2","Product42003Q2"]
["295","Customer295","Finance","North America","Entera CRM",400,636,"Q4",2008,"Porter Le","2008Q4","Finance2008Q4","North America2008Q4","Porter Le2008Q4","Entera CRM2008Q4"]
["296","Customer296","Consumer Goods","Europe","Product1",200,448,"Q3",2006,"Fritz Klein","2006Q3","Consumer Goods2006Q3","Europe2006Q3","Fritz Klein2006Q3","Product12006Q3"]
["297","Customer297","Materials","Europe","Product4",150,715,"Q2",2004,"Fritz Klein","2004Q2","Materials2004Q2","Europe2004Q2","Fritz Klein2004Q2","Product42004Q2"]
["298","Customer298","Services","Asia Pacific","Product3",600,632,"Q2",2006,"Oren Chase","2006Q2","Services2006Q2","Asia Pacific2006Q2","Oren Chase2006Q2","Product32006Q2"]
["299","Customer299","Consumer Goods","North America","Product4",300,702,"Q4",2008,"Porter Le","2008Q4","Consumer Goods2008Q4","North America2008Q4","Porter Le2008Q4","Product42008Q4"]
["300","Customer300","Healthcare","South America","Product4",450,390,"Q4",2003,"Nasim Hanson","2003Q4","Healthcare2003Q4","South America2003Q4","Nasim Hanson2003Q4","Product42003Q4"]
["301","Customer301","Materials","Asia Pacific","Product3",150,529,"Q4",2005,"Oren Chase","2005Q4","Materials2005Q4","Asia Pacific2005Q4","Oren Chase2005Q4","Product32005Q4"]
["302","Customer302","Services","North America","Product1",600,166,"Q4",2004,"Porter Le","2004Q4","Services2004Q4","North America2004Q4","Porter Le2004Q4","Product12004Q4"]
["303","Customer303","Finance","Europe","Product4",350,740,"Q3",2008,"Fritz Klein","2008Q3","Finance2008Q3","Europe2008Q3","Fritz Klein2008Q3","Product42008Q3"]
["304","Customer304","Materials","Asia Pacific","Product1",150,36,"Q1",2007,"Oren Chase","2007Q1","Materials2007Q1","Asia Pacific2007Q1","Oren Chase2007Q1","Product12007Q1"]
["305","Customer305","Consumer Goods","Asia Pacific","Product2",250,969,"Q1",2003,"Oren Chase","2003Q1","Consumer Goods2003Q1","Asia Pacific2003Q1","Oren Chase2003Q1","Product22003Q1"]
["306","Customer306","Consumer Goods","Europe","Entera CRM",200,806,"Q2",2007,"Fritz Klein","2007Q2","Consumer Goods2007Q2","Europe2007Q2","Fritz Klein2007Q2","Entera CRM2007Q2"]
["307","Customer307","Services","North America","Product1",550,93,"Q1",2003,"Porter Le","2003Q1","Services2003Q1","North America2003Q1","Porter Le2003Q1","Product12003Q1"]
["308","Customer308","Finance","Asia Pacific","Product1",400,558,"Q1",2006,"Oren Chase","2006Q1","Finance2006Q1","Asia Pacific2006Q1","Oren Chase2006Q1","Product12006Q1"]
["309","Customer309","Materials","North America","Product4",100,445,"Q1",2008,"Porter Le","2008Q1","Materials2008Q1","North America2008Q1","Porter Le2008Q1","Product42008Q1"]
["310","Customer310","Finance","North America","Product3",300,441,"Q1",2005,"Porter Le","2005Q1","Finance2005Q1","North America2005Q1","Porter Le2005Q1","Product32005Q1"]
["311","Customer311","Services","North America","Product2",600,899,"Q2",2007,"Porter Le","2007Q2","Services2007Q2","North America2007Q2","Porter Le2007Q2","Product22007Q2"]
["312","Customer312","Services","North America","Product3",550,731,"Q4",2006,"Porter Le","2006Q4","Services2006Q4","North America2006Q4","Porter Le2006Q4","Product32006Q4"]
["313","Customer313","Finance","North America","Entera CRM",350,227,"Q4",2006,"Porter Le","2006Q4","Finance2006Q4","North America2006Q4","Porter Le2006Q4","Entera CRM2006Q4"]
["314","Customer314","Consumer Goods","Europe","Product2",250,768,"Q3",2008,"Fritz Klein","2008Q3","Consumer Goods2008Q3","Europe2008Q3","Fritz Klein2008Q3","Product22008Q3"]
["315","Customer315","Healthcare","Europe","Product2",500,138,"Q2",2008,"Fritz Klein","2008Q2","Healthcare2008Q2","Europe2008Q2","Fritz Klein2008Q2","Product22008Q2"]
["316","Customer316","Materials","Europe","Product1",100,111,"Q3",2008,"Fritz Klein","2008Q3","Materials2008Q3","Europe2008Q3","Fritz Klein2008Q3","Product12008Q3"]
["317","Customer317","Technology","Asia Pacific","Entera CRM",700,272,"Q1",2006,"Oren Chase","2006Q1","Technology2006Q1","Asia Pacific2006Q1","Oren Chase2006Q1","Entera CRM2006Q1"]
["318","Customer318","Technology","Asia Pacific","Entera CRM",700,824,"Q3",2007,"Oren Chase","2007Q3","Technology2007Q3","Asia Pacific2007Q3","Oren Chase2007Q3","Entera CRM2007Q3"]
["319","Customer319","Materials","Europe","Product1",150,890,"Q2",2004,"Fritz Klein","2004Q2","Materials2004Q2","Europe2004Q2","Fritz Klein2004Q2","Product12004Q2"]
["320","Customer320","Materials","Europe","Product3",100,295,"Q3",2005,"Fritz Klein","2005Q3","Materials2005Q3","Europe2005Q3","Fritz Klein2005Q3","Product32005Q3"]
["321","Customer321","Healthcare","South America","Entera CRM",500,266,"Q4",2007,"Nasim Hanson","2007Q4","Healthcare2007Q4","South America2007Q4","Nasim Hanson2007Q4","Entera CRM2007Q4"]
[{"$f":"IF(LEN(B323)=9,RIGHT(B323,1),IF(LEN(B323)=10,RIGHT(B323,2),RIGHT(B323,3)))","v":"322"},"Customer322","Utilities","North America","Product2",700,244,"Q2",2003,"Porter Le","2003Q2","Utilities2003Q2","North America2003Q2","Porter Le2003Q2","Product22003Q2"]
["323","Customer323","Materials","Europe","Product3",150,766,"Q4",2005,"Fritz Klein","2005Q4","Materials2005Q4","Europe2005Q4","Fritz Klein2005Q4","Product32005Q4"]
["324","Customer324","Materials","Asia Pacific","Product4",150,507,"Q4",2005,"Oren Chase","2005Q4","Materials2005Q4","Asia Pacific2005Q4","Oren Chase2005Q4","Product42005Q4"]
["325","Customer325","Finance","Asia Pacific","Product4",450,773,"Q2",2007,"Oren Chase","2007Q2","Finance2007Q2","Asia Pacific2007Q2","Oren Chase2007Q2","Product42007Q2"]
["326","Customer326","Finance","Europe","Product3",350,586,"Q2",2007,"Fritz Klein","2007Q2","Finance2007Q2","Europe2007Q2","Fritz Klein2007Q2","Product32007Q2"]
["327","Customer327","Finance","North America","Product1",350,681,"Q4",2008,"Porter Le","2008Q4","Finance2008Q4","North America2008Q4","Porter Le2008Q4","Product12008Q4"]
["328","Customer328","Finance","Europe","Product2",400,416,"Q4",2008,"Fritz Klein","2008Q4","Finance2008Q4","Europe2008Q4","Fritz Klein2008Q4","Product22008Q4"]
["329","Customer329","Healthcare","South America","Product4",450,424,"Q3",2005,"Nasim Hanson","2005Q3","Healthcare2005Q3","South America2005Q3","Nasim Hanson2005Q3","Product42005Q3"]
["330","Customer330","Materials","Asia Pacific","Entera CRM",150,268,"Q1",2007,"Oren Chase","2007Q1","Materials2007Q1","Asia Pacific2007Q1","Oren Chase2007Q1","Entera CRM2007Q1"]
["331","Customer331","Finance","Europe","Entera CRM",400,831,"Q1",2008,"Fritz Klein","2008Q1","Finance2008Q1","Europe2008Q1","Fritz Klein2008Q1","Entera CRM2008Q1"]
["332","Customer332","Materials","North America","Entera CRM",100,817,"Q4",2004,"Porter Le","2004Q4","Materials2004Q4","North America2004Q4","Porter Le2004Q4","Entera CRM2004Q4"]
["333","Customer333","Finance","North America","Product3",350,888,"Q4",2005,"Porter Le","2005Q4","Finance2005Q4","North America2005Q4","Porter Le2005Q4","Product32005Q4"]
["334","Customer334","Finance","North America","Product2",300,561,"Q2",2008,"Porter Le","2008Q2","Finance2008Q2","North America2008Q2","Porter Le2008Q2","Product22008Q2"]
["335","Customer335","Healthcare","North America","Product4",500,503,"Q3",2004,"Porter Le","2004Q3","Healthcare2004Q3","North America2004Q3","Porter Le2004Q3","Product42004Q3"]
["336","Customer336","Services","North America","Entera CRM",550,957,"Q3",2003,"Porter Le","2003Q3","Services2003Q3","North America2003Q3","Porter Le2003Q3","Entera CRM2003Q3"]
["337","Customer337","Utilities","South America","Product4",700,903,"Q4",2005,"Nasim Hanson","2005Q4","Utilities2005Q4","South America2005Q4","Nasim Hanson2005Q4","Product42005Q4"]
["338","Customer338","Technology","Asia Pacific","Product3",700,797,"Q3",2004,"Oren Chase","2004Q3","Technology2004Q3","Asia Pacific2004Q3","Oren Chase2004Q3","Product32004Q3"]
["339","Customer339","Consumer Goods","Europe","Product1",200,852,"Q3",2003,"Fritz Klein","2003Q3","Consumer Goods2003Q3","Europe2003Q3","Fritz Klein2003Q3","Product12003Q3"]
["340","Customer340","Services","Asia Pacific","Product2",600,632,"Q2",2008,"Oren Chase","2008Q2","Services2008Q2","Asia Pacific2008Q2","Oren Chase2008Q2","Product22008Q2"]
["341","Customer341","Finance","North America","Product1",350,707,"Q3",2005,"Porter Le","2005Q3","Finance2005Q3","North America2005Q3","Porter Le2005Q3","Product12005Q3"]
["342","Customer342","Materials","Europe","Entera CRM",150,998,"Q1",2003,"Fritz Klein","2003Q1","Materials2003Q1","Europe2003Q1","Fritz Klein2003Q1","Entera CRM2003Q1"]
["343","Customer343","Materials","North America","Product4",100,33,"Q3",2005,"Porter Le","2005Q3","Materials2005Q3","North America2005Q3","Porter Le2005Q3","Product42005Q3"]
["344","Customer344","Finance","North America","Product2",300,840,"Q1",2008,"Porter Le","2008Q1","Finance2008Q1","North America2008Q1","Porter Le2008Q1","Product22008Q1"]
["345","Customer345","Finance","Europe","Product4",350,475,"Q2",2004,"Fritz Klein","2004Q2","Finance2004Q2","Europe2004Q2","Fritz Klein2004Q2","Product42004Q2"]
["346","Customer346","Healthcare","Asia Pacific","Entera CRM",450,537,"Q2",2008,"Oren Chase","2008Q2","Healthcare2008Q2","Asia Pacific2008Q2","Oren Chase2008Q2","Entera CRM2008Q2"]
["347","Customer347","Finance","North America","Product3",350,861,"Q3",2008,"Porter Le","2008Q3","Finance2008Q3","North America2008Q3","Porter Le2008Q3","Product32008Q3"]
["348","Customer348","Finance","North America","Product3",350,974,"Q2",2005,"Porter Le","2005Q2","Finance2005Q2","North America2005Q2","Porter Le2005Q2","Product32005Q2"]
["349","Customer349","Services","North America","Entera CRM",600,766,"Q4",2003,"Porter Le","2003Q4","Services2003Q4","North America2003Q4","Porter Le2003Q4","Entera CRM2003Q4"]
["350","Customer350","Materials","North America","Product3",100,230,"Q2",2005,"Porter Le","2005Q2","Materials2005Q2","North America2005Q2","Porter Le2005Q2","Product32005Q2"]
["351","Customer351","Materials","Asia Pacific","Entera CRM",150,882,"Q1",2005,"Oren Chase","2005Q1","Materials2005Q1","Asia Pacific2005Q1","Oren Chase2005Q1","Entera CRM2005Q1"]
["352","Customer352","Healthcare","North America","Product1",500,765,"Q2",2007,"Porter Le","2007Q2","Healthcare2007Q2","North America2007Q2","Porter Le2007Q2","Product12007Q2"]
["353","Customer353","Consumer Goods","Europe","Product4",200,73,"Q2",2005,"Fritz Klein","2005Q2","Consumer Goods2005Q2","Europe2005Q2","Fritz Klein2005Q2","Product42005Q2"]
["354","Customer354","Healthcare","Europe","Product1",500,314,"Q2",2005,"Fritz Klein","2005Q2","Healthcare2005Q2","Europe2005Q2","Fritz Klein2005Q2","Product12005Q2"]
["355","Customer355","Consumer Goods","North America","Product4",200,396,"Q1",2007,"Porter Le","2007Q1","Consumer Goods2007Q1","North America2007Q1","Porter Le2007Q1","Product42007Q1"]
["356","Customer356","Services","Asia Pacific","Product3",600,355,"Q2",2003,"Oren Chase","2003Q2","Services2003Q2","Asia Pacific2003Q2","Oren Chase2003Q2","Product32003Q2"]
["357","Customer357","Materials","Middle East","Product3",200,708,"Q2",2006,"Bradley Valenzuela","2006Q2","Materials2006Q2","Middle East2006Q2","Bradley Valenzuela2006Q2","Product32006Q2"]
["358","Customer358","Technology","Asia Pacific","Product4",650,555,"Q2",2007,"Oren Chase","2007Q2","Technology2007Q2","Asia Pacific2007Q2","Oren Chase2007Q2","Product42007Q2"]
["359","Customer359","Finance","Europe","Product3",400,973,"Q4",2007,"Fritz Klein","2007Q4","Finance2007Q4","Europe2007Q4","Fritz Klein2007Q4","Product32007Q4"]
["360","Customer360","Consumer Goods","Europe","Entera CRM",250,663,"Q3",2008,"Fritz Klein","2008Q3","Consumer Goods2008Q3","Europe2008Q3","Fritz Klein2008Q3","Entera CRM2008Q3"]
["361","Customer361","Consumer Goods","North America","Entera CRM",300,76,"Q1",2008,"Porter Le","2008Q1","Consumer Goods2008Q1","North America2008Q1","Porter Le2008Q1","Entera CRM2008Q1"]
["362","Customer362","Healthcare","North America","Product4",500,859,"Q3",2007,"Porter Le","2007Q3","Healthcare2007Q3","North America2007Q3","Porter Le2007Q3","Product42007Q3"]
["363","Customer363","Finance","North America","Product3",300,311,"Q2",2004,"Porter Le","2004Q2","Finance2004Q2","North America2004Q2","Porter Le2004Q2","Product32004Q2"]
["364","Customer364","Materials","South America","Product1",100,890,"Q1",2006,"Nasim Hanson","2006Q1","Materials2006Q1","South America2006Q1","Nasim Hanson2006Q1","Product12006Q1"]
["365","Customer365","Consumer Goods","Asia Pacific","Product1",250,143,"Q4",2007,"Oren Chase","2007Q4","Consumer Goods2007Q4","Asia Pacific2007Q4","Oren Chase2007Q4","Product12007Q4"]
["366","Customer366","Finance","Asia Pacific","Product2",450,953,"Q2",2008,"Oren Chase","2008Q2","Finance2008Q2","Asia Pacific2008Q2","Oren Chase2008Q2","Product22008Q2"]
["367","Customer367","Materials","Middle East","Product1",150,709,"Q4",2006,"Bradley Valenzuela","2006Q4","Materials2006Q4","Middle East2006Q4","Bradley Valenzuela2006Q4","Product12006Q4"]
["368","Customer368","Materials","South America","Product4",100,815,"Q2",2005,"Nasim Hanson","2005Q2","Materials2005Q2","South America2005Q2","Nasim Hanson2005Q2","Product42005Q2"]
["369","Customer369","Finance","Europe","Entera CRM",350,543,"Q4",2008,"Fritz Klein","2008Q4","Finance2008Q4","Europe2008Q4","Fritz Klein2008Q4","Entera CRM2008Q4"]
["370","Customer370","Consumer Goods","Asia Pacific","Product3",250,511,"Q4",2005,"Oren Chase","2005Q4","Consumer Goods2005Q4","Asia Pacific2005Q4","Oren Chase2005Q4","Product32005Q4"]
["371","Customer371","Finance","Europe","Product1",350,217,"Q4",2004,"Fritz Klein","2004Q4","Finance2004Q4","Europe2004Q4","Fritz Klein2004Q4","Product12004Q4"]
["372","Customer372","Utilities","South America","Product2",700,705,"Q2",2006,"Nasim Hanson","2006Q2","Utilities2006Q2","South America2006Q2","Nasim Hanson2006Q2","Product22006Q2"]
["373","Customer373","Healthcare","Europe","Entera CRM",500,903,"Q2",2005,"Fritz Klein","2005Q2","Healthcare2005Q2","Europe2005Q2","Fritz Klein2005Q2","Entera CRM2005Q2"]
["374","Customer374","Utilities","South America","Entera CRM",700,799,"Q2",2006,"Nasim Hanson","2006Q2","Utilities2006Q2","South America2006Q2","Nasim Hanson2006Q2","Entera CRM2006Q2"]
["375","Customer375","Technology","Europe","Product4",650,522,"Q1",2004,"Fritz Klein","2004Q1","Technology2004Q1","Europe2004Q1","Fritz Klein2004Q1","Product42004Q1"]
["376","Customer376","Consumer Goods","North America","Product3",300,721,"Q4",2006,"Porter Le","2006Q4","Consumer Goods2006Q4","North America2006Q4","Porter Le2006Q4","Product32006Q4"]
["377","Customer377","Technology","North America","Product3",650,313,"Q2",2007,"Porter Le","2007Q2","Technology2007Q2","North America2007Q2","Porter Le2007Q2","Product32007Q2"]
["378","Customer378","Consumer Goods","Europe","Product1",200,335,"Q1",2003,"Fritz Klein","2003Q1","Consumer Goods2003Q1","Europe2003Q1","Fritz Klein2003Q1","Product12003Q1"]
["379","Customer379","Healthcare","Asia Pacific","Product4",450,665,"Q3",2005,"Oren Chase","2005Q3","Healthcare2005Q3","Asia Pacific2005Q3","Oren Chase2005Q3","Product42005Q3"]
["380","Customer380","Services","North America","Product4",550,526,"Q3",2004,"Porter Le","2004Q3","Services2004Q3","North America2004Q3","Porter Le2004Q3","Product42004Q3"]
["381","Customer381","Consumer Goods","Europe","Product1",300,131,"Q2",2004,"Fritz Klein","2004Q2","Consumer Goods2004Q2","Europe2004Q2","Fritz Klein2004Q2","Product12004Q2"]
["382","Customer382","Industrial Goods","Asia Pacific","Product1",550,250,"Q3",2006,"Oren Chase","2006Q3","Industrial Goods2006Q3","Asia Pacific2006Q3","Oren Chase2006Q3","Product12006Q3"]
["383","Customer383","Finance","Europe","Product3",350,847,"Q1",2007,"Fritz Klein","2007Q1","Finance2007Q1","Europe2007Q1","Fritz Klein2007Q1","Product32007Q1"]
["384","Customer384","Finance","North America","Product3",300,943,"Q1",2006,"Porter Le","2006Q1","Finance2006Q1","North America2006Q1","Porter Le2006Q1","Product32006Q1"]
["385","Customer385","Consumer Goods","Europe","Entera CRM",250,612,"Q1",2008,"Fritz Klein","2008Q1","Consumer Goods2008Q1","Europe2008Q1","Fritz Klein2008Q1","Entera CRM2008Q1"]
[{"$f":"IF(LEN(B387)=9,RIGHT(B387,1),IF(LEN(B387)=10,RIGHT(B387,2),RIGHT(B387,3)))","v":"386"},"Customer386","Finance","North America","Entera CRM",350,834,"Q3",2005,"Porter Le","2005Q3","Finance2005Q3","North America2005Q3","Porter Le2005Q3","Entera CRM2005Q3"]
["387","Customer387","Technology","Europe","Product3",650,256,"Q4",2006,"Fritz Klein","2006Q4","Technology2006Q4","Europe2006Q4","Fritz Klein2006Q4","Product32006Q4"]
["388","Customer388","Finance","Europe","Product2",350,199,"Q4",2003,"Fritz Klein","2003Q4","Finance2003Q4","Europe2003Q4","Fritz Klein2003Q4","Product22003Q4"]
["389","Customer389","Technology","Asia Pacific","Product1",650,575,"Q3",2007,"Oren Chase","2007Q3","Technology2007Q3","Asia Pacific2007Q3","Oren Chase2007Q3","Product12007Q3"]
["390","Customer390","Technology","Asia Pacific","Product3",700,435,"Q1",2004,"Oren Chase","2004Q1","Technology2004Q1","Asia Pacific2004Q1","Oren Chase2004Q1","Product32004Q1"]
["391","Customer391","Consumer Goods","Asia Pacific","Product3",250,706,"Q3",2007,"Oren Chase","2007Q3","Consumer Goods2007Q3","Asia Pacific2007Q3","Oren Chase2007Q3","Product32007Q3"]
["392","Customer392","Materials","North America","Product4",100,682,"Q4",2005,"Porter Le","2005Q4","Materials2005Q4","North America2005Q4","Porter Le2005Q4","Product42005Q4"]
["393","Customer393","Finance","Europe","Product2",350,767,"Q2",2005,"Fritz Klein","2005Q2","Finance2005Q2","Europe2005Q2","Fritz Klein2005Q2","Product22005Q2"]
["394","Customer394","Materials","North America","Product3",100,440,"Q3",2008,"Porter Le","2008Q3","Materials2008Q3","North America2008Q3","Porter Le2008Q3","Product32008Q3"]
["395","Customer395","Materials","North America","Product2",100,237,"Q1",2006,"Porter Le","2006Q1","Materials2006Q1","North America2006Q1","Porter Le2006Q1","Product22006Q1"]
["396","Customer396","Services","North America","Product3",600,209,"Q2",2005,"Porter Le","2005Q2","Services2005Q2","North America2005Q2","Porter Le2005Q2","Product32005Q2"]
["397","Customer397","Industrial Goods","Asia Pacific","Product1",550,829,"Q3",2003,"Oren Chase","2003Q3","Industrial Goods2003Q3","Asia Pacific2003Q3","Oren Chase2003Q3","Product12003Q3"]
["398","Customer398","Consumer Goods","Europe","Product3",300,777,"Q3",2008,"Fritz Klein","2008Q3","Consumer Goods2008Q3","Europe2008Q3","Fritz Klein2008Q3","Product32008Q3"]
["399","Customer399","Finance","Europe","Entera CRM",400,111,"Q2",2005,"Fritz Klein","2005Q2","Finance2005Q2","Europe2005Q2","Fritz Klein2005Q2","Entera CRM2005Q2"]
["400","Customer400","Finance","North America","Product4",300,181,"Q2",2003,"Porter Le","2003Q2","Finance2003Q2","North America2003Q2","Porter Le2003Q2","Product42003Q2"]
["401","Customer401","Services","North America","Product2",600,790,"Q4",2005,"Porter Le","2005Q4","Services2005Q4","North America2005Q4","Porter Le2005Q4","Product22005Q4"]
["402","Customer402","Materials","South America","Product1",100,722,"Q1",2008,"Nasim Hanson","2008Q1","Materials2008Q1","South America2008Q1","Nasim Hanson2008Q1","Product12008Q1"]
["403","Customer403","Finance","North America","Product2",350,650,"Q3",2007,"Porter Le","2007Q3","Finance2007Q3","North America2007Q3","Porter Le2007Q3","Product22007Q3"]
["404","Customer404","Finance","North America","Product4",300,806,"Q1",2003,"Porter Le","2003Q1","Finance2003Q1","North America2003Q1","Porter Le2003Q1","Product42003Q1"]
["405","Customer405","Healthcare","Asia Pacific","Product3",450,316,"Q4",2006,"Oren Chase","2006Q4","Healthcare2006Q4","Asia Pacific2006Q4","Oren Chase2006Q4","Product32006Q4"]
["406","Customer406","Materials","South America","Product4",100,109,"Q1",2005,"Nasim Hanson","2005Q1","Materials2005Q1","South America2005Q1","Nasim Hanson2005Q1","Product42005Q1"]
["407","Customer407","Industrial Goods","Asia Pacific","Product4",500,967,"Q3",2006,"Oren Chase","2006Q3","Industrial Goods2006Q3","Asia Pacific2006Q3","Oren Chase2006Q3","Product42006Q3"]
["408","Customer408","Consumer Goods","Europe","Product4",250,311,"Q1",2007,"Fritz Klein","2007Q1","Consumer Goods2007Q1","Europe2007Q1","Fritz Klein2007Q1","Product42007Q1"]
["409","Customer409","Services","Asia Pacific","Product3",600,949,"Q4",2003,"Oren Chase","2003Q4","Services2003Q4","Asia Pacific2003Q4","Oren Chase2003Q4","Product32003Q4"]
["410","Customer410","Materials","South America","Entera CRM",100,342,"Q1",2005,"Nasim Hanson","2005Q1","Materials2005Q1","South America2005Q1","Nasim Hanson2005Q1","Entera CRM2005Q1"]
["411","Customer411","Consumer Goods","Europe","Entera CRM",250,878,"Q3",2008,"Fritz Klein","2008Q3","Consumer Goods2008Q3","Europe2008Q3","Fritz Klein2008Q3","Entera CRM2008Q3"]
["412","Customer412","Consumer Goods","Europe","Product1",200,803,"Q1",2007,"Fritz Klein","2007Q1","Consumer Goods2007Q1","Europe2007Q1","Fritz Klein2007Q1","Product12007Q1"]
["413","Customer413","Finance","North America","Product2",350,473,"Q2",2007,"Porter Le","2007Q2","Finance2007Q2","North America2007Q2","Porter Le2007Q2","Product22007Q2"]
["414","Customer414","Consumer Goods","Europe","Product4",200,774,"Q1",2005,"Fritz Klein","2005Q1","Consumer Goods2005Q1","Europe2005Q1","Fritz Klein2005Q1","Product42005Q1"]
["415","Customer415","Industrial Goods","Asia Pacific","Product1",550,515,"Q4",2008,"Oren Chase","2008Q4","Industrial Goods2008Q4","Asia Pacific2008Q4","Oren Chase2008Q4","Product12008Q4"]
["416","Customer416","Technology","Europe","Product1",650,740,"Q3",2008,"Fritz Klein","2008Q3","Technology2008Q3","Europe2008Q3","Fritz Klein2008Q3","Product12008Q3"]
["417","Customer417","Utilities","North America","Product2",700,910,"Q3",2007,"Porter Le","2007Q3","Utilities2007Q3","North America2007Q3","Porter Le2007Q3","Product22007Q3"]
["418","Customer418","Healthcare","Asia Pacific","Product2",450,347,"Q1",2006,"Oren Chase","2006Q1","Healthcare2006Q1","Asia Pacific2006Q1","Oren Chase2006Q1","Product22006Q1"]
["419","Customer419","Finance","Europe","Product1",400,986,"Q2",2003,"Fritz Klein","2003Q2","Finance2003Q2","Europe2003Q2","Fritz Klein2003Q2","Product12003Q2"]
["420","Customer420","Materials","Asia Pacific","Product1",150,886,"Q3",2003,"Oren Chase","2003Q3","Materials2003Q3","Asia Pacific2003Q3","Oren Chase2003Q3","Product12003Q3"]
["421","Customer421","Materials","Asia Pacific","Product4",150,530,"Q4",2008,"Oren Chase","2008Q4","Materials2008Q4","Asia Pacific2008Q4","Oren Chase2008Q4","Product42008Q4"]
["422","Customer422","Healthcare","Asia Pacific","Entera CRM",450,237,"Q2",2003,"Oren Chase","2003Q2","Healthcare2003Q2","Asia Pacific2003Q2","Oren Chase2003Q2","Entera CRM2003Q2"]
["423","Customer423","Consumer Goods","North America","Product4",300,978,"Q2",2003,"Porter Le","2003Q2","Consumer Goods2003Q2","North America2003Q2","Porter Le2003Q2","Product42003Q2"]
["424","Customer424","Services","North America","Product1",550,396,"Q1",2003,"Porter Le","2003Q1","Services2003Q1","North America2003Q1","Porter Le2003Q1","Product12003Q1"]
["425","Customer425","Consumer Goods","Europe","Entera CRM",250,209,"Q4",2003,"Fritz Klein","2003Q4","Consumer Goods2003Q4","Europe2003Q4","Fritz Klein2003Q4","Entera CRM2003Q4"]
["426","Customer426","Finance","North America","Product1",400,997,"Q2",2006,"Porter Le","2006Q2","Finance2006Q2","North America2006Q2","Porter Le2006Q2","Product12006Q2"]
["427","Customer427","Services","North America","Product4",550,877,"Q3",2003,"Porter Le","2003Q3","Services2003Q3","North America2003Q3","Porter Le2003Q3","Product42003Q3"]
["428","Customer428","Finance","Europe","Product4",350,51,"Q1",2007,"Fritz Klein","2007Q1","Finance2007Q1","Europe2007Q1","Fritz Klein2007Q1","Product42007Q1"]
["429","Customer429","Consumer Goods","North America","Product1",300,986,"Q1",2003,"Porter Le","2003Q1","Consumer Goods2003Q1","North America2003Q1","Porter Le2003Q1","Product12003Q1"]
["430","Customer430","Services","North America","Entera CRM",600,226,"Q2",2008,"Porter Le","2008Q2","Services2008Q2","North America2008Q2","Porter Le2008Q2","Entera CRM2008Q2"]
["431","Customer431","Materials","Asia Pacific","Entera CRM",150,381,"Q1",2006,"Oren Chase","2006Q1","Materials2006Q1","Asia Pacific2006Q1","Oren Chase2006Q1","Entera CRM2006Q1"]
["432","Customer432","Materials","Asia Pacific","Product4",150,219,"Q2",2005,"Oren Chase","2005Q2","Materials2005Q2","Asia Pacific2005Q2","Oren Chase2005Q2","Product42005Q2"]
["433","Customer433","Services","North America","Product2",600,139,"Q1",2004,"Porter Le","2004Q1","Services2004Q1","North America2004Q1","Porter Le2004Q1","Product22004Q1"]
["434","Customer434","Finance","Europe","Product4",350,360,"Q2",2003,"Fritz Klein","2003Q2","Finance2003Q2","Europe2003Q2","Fritz Klein2003Q2","Product42003Q2"]
["435","Customer435","Technology","Europe","Product3",650,884,"Q3",2003,"Fritz Klein","2003Q3","Technology2003Q3","Europe2003Q3","Fritz Klein2003Q3","Product32003Q3"]
["436","Customer436","Materials","Middle East","Product4",150,509,"Q2",2006,"Bradley Valenzuela","2006Q2","Materials2006Q2","Middle East2006Q2","Bradley Valenzuela2006Q2","Product42006Q2"]
["437","Customer437","Finance","North America","Entera CRM",400,142,"Q4",2008,"Porter Le","2008Q4","Finance2008Q4","North America2008Q4","Porter Le2008Q4","Entera CRM2008Q4"]
["438","Customer438","Consumer Goods","North America","Product2",200,996,"Q3",2006,"Porter Le","2006Q3","Consumer Goods2006Q3","North America2006Q3","Porter Le2006Q3","Product22006Q3"]
["439","Customer439","Consumer Goods","Europe","Entera CRM",200,592,"Q3",2007,"Fritz Klein","2007Q3","Consumer Goods2007Q3","Europe2007Q3","Fritz Klein2007Q3","Entera CRM2007Q3"]
["440","Customer440","Finance","Europe","Product3",400,659,"Q3",2004,"Fritz Klein","2004Q3","Finance2004Q3","Europe2004Q3","Fritz Klein2004Q3","Product32004Q3"]
["441","Customer441","Consumer Goods","Europe","Product1",200,437,"Q2",2007,"Fritz Klein","2007Q2","Consumer Goods2007Q2","Europe2007Q2","Fritz Klein2007Q2","Product12007Q2"]
["442","Customer442","Finance","North America","Product4",300,249,"Q2",2007,"Porter Le","2007Q2","Finance2007Q2","North America2007Q2","Porter Le2007Q2","Product42007Q2"]
["443","Customer443","Technology","Asia Pacific","Product2",700,198,"Q3",2006,"Oren Chase","2006Q3","Technology2006Q3","Asia Pacific2006Q3","Oren Chase2006Q3","Product22006Q3"]
["444","Customer444","Materials","Europe","Product2",100,964,"Q1",2007,"Fritz Klein","2007Q1","Materials2007Q1","Europe2007Q1","Fritz Klein2007Q1","Product22007Q1"]
["445","Customer445","Finance","North America","Entera CRM",300,494,"Q3",2005,"Porter Le","2005Q3","Finance2005Q3","North America2005Q3","Porter Le2005Q3","Entera CRM2005Q3"]
["446","Customer446","Industrial Goods","Asia Pacific","Entera CRM",550,105,"Q3",2006,"Oren Chase","2006Q3","Industrial Goods2006Q3","Asia Pacific2006Q3","Oren Chase2006Q3","Entera CRM2006Q3"]
["447","Customer447","Technology","North America","Product1",650,857,"Q1",2003,"Porter Le","2003Q1","Technology2003Q1","North America2003Q1","Porter Le2003Q1","Product12003Q1"]
["448","Customer448","Materials","Middle East","Product1",150,335,"Q1",2004,"Bradley Valenzuela","2004Q1","Materials2004Q1","Middle East2004Q1","Bradley Valenzuela2004Q1","Product12004Q1"]
["449","Customer449","Materials","South America","Product4",100,45,"Q1",2007,"Nasim Hanson","2007Q1","Materials2007Q1","South America2007Q1","Nasim Hanson2007Q1","Product42007Q1"]
[{"$f":"IF(LEN(B451)=9,RIGHT(B451,1),IF(LEN(B451)=10,RIGHT(B451,2),RIGHT(B451,3)))","v":"450"},"Customer450","Consumer Goods","North America","Product4",300,280,"Q3",2003,"Porter Le","2003Q3","Consumer Goods2003Q3","North America2003Q3","Porter Le2003Q3","Product42003Q3"]
["451","Customer451","Services","North America","Product3",600,766,"Q1",2003,"Porter Le","2003Q1","Services2003Q1","North America2003Q1","Porter Le2003Q1","Product32003Q1"]
["452","Customer452","Materials","South America","Entera CRM",100,538,"Q1",2006,"Nasim Hanson","2006Q1","Materials2006Q1","South America2006Q1","Nasim Hanson2006Q1","Entera CRM2006Q1"]
["453","Customer453","Finance","Asia Pacific","Product1",450,604,"Q2",2004,"Oren Chase","2004Q2","Finance2004Q2","Asia Pacific2004Q2","Oren Chase2004Q2","Product12004Q2"]
["454","Customer454","Consumer Goods","Europe","Product3",250,237,"Q3",2003,"Fritz Klein","2003Q3","Consumer Goods2003Q3","Europe2003Q3","Fritz Klein2003Q3","Product32003Q3"]
["455","Customer455","Consumer Goods","North America","Product4",200,625,"Q2",2004,"Porter Le","2004Q2","Consumer Goods2004Q2","North America2004Q2","Porter Le2004Q2","Product42004Q2"]
["456","Customer456","Finance","Asia Pacific","Product2",450,652,"Q4",2003,"Oren Chase","2003Q4","Finance2003Q4","Asia Pacific2003Q4","Oren Chase2003Q4","Product22003Q4"]
["457","Customer457","Utilities","North America","Product3",700,629,"Q4",2004,"Porter Le","2004Q4","Utilities2004Q4","North America2004Q4","Porter Le2004Q4","Product32004Q4"]
["458","Customer458","Consumer Goods","Asia Pacific","Product3",250,446,"Q4",2008,"Oren Chase","2008Q4","Consumer Goods2008Q4","Asia Pacific2008Q4","Oren Chase2008Q4","Product32008Q4"]
["459","Customer459","Technology","Europe","Product4",650,880,"Q3",2005,"Fritz Klein","2005Q3","Technology2005Q3","Europe2005Q3","Fritz Klein2005Q3","Product42005Q3"]
["460","Customer460","Finance","North America","Product4",300,274,"Q4",2005,"Porter Le","2005Q4","Finance2005Q4","North America2005Q4","Porter Le2005Q4","Product42005Q4"]
["461","Customer461","Finance","Europe","Product1",350,865,"Q3",2005,"Fritz Klein","2005Q3","Finance2005Q3","Europe2005Q3","Fritz Klein2005Q3","Product12005Q3"]
["462","Customer462","Consumer Goods","North America","Product2",300,895,"Q1",2003,"Porter Le","2003Q1","Consumer Goods2003Q1","North America2003Q1","Porter Le2003Q1","Product22003Q1"]
["463","Customer463","Services","North America","Product1",550,100,"Q3",2008,"Porter Le","2008Q3","Services2008Q3","North America2008Q3","Porter Le2008Q3","Product12008Q3"]
["464","Customer464","Services","North America","Product4",550,804,"Q3",2003,"Porter Le","2003Q3","Services2003Q3","North America2003Q3","Porter Le2003Q3","Product42003Q3"]
["465","Customer465","Consumer Goods","North America","Product4",300,290,"Q2",2003,"Porter Le","2003Q2","Consumer Goods2003Q2","North America2003Q2","Porter Le2003Q2","Product42003Q2"]
["466","Customer466","Industrial Goods","Asia Pacific","Product3",550,755,"Q1",2003,"Oren Chase","2003Q1","Industrial Goods2003Q1","Asia Pacific2003Q1","Oren Chase2003Q1","Product32003Q1"]
["467","Customer467","Healthcare","Europe","Product4",500,146,"Q2",2008,"Fritz Klein","2008Q2","Healthcare2008Q2","Europe2008Q2","Fritz Klein2008Q2","Product42008Q2"]
["468","Customer468","Finance","Asia Pacific","Product1",450,336,"Q3",2004,"Oren Chase","2004Q3","Finance2004Q3","Asia Pacific2004Q3","Oren Chase2004Q3","Product12004Q3"]
["469","Customer469","Materials","Europe","Product3",100,394,"Q2",2004,"Fritz Klein","2004Q2","Materials2004Q2","Europe2004Q2","Fritz Klein2004Q2","Product32004Q2"]
["470","Customer470","Consumer Goods","North America","Product4",300,623,"Q3",2008,"Porter Le","2008Q3","Consumer Goods2008Q3","North America2008Q3","Porter Le2008Q3","Product42008Q3"]
["471","Customer471","Technology","North America","Product4",650,285,"Q4",2006,"Porter Le","2006Q4","Technology2006Q4","North America2006Q4","Porter Le2006Q4","Product42006Q4"]
["472","Customer472","Consumer Goods","Europe","Product1",250,775,"Q1",2006,"Fritz Klein","2006Q1","Consumer Goods2006Q1","Europe2006Q1","Fritz Klein2006Q1","Product12006Q1"]
["473","Customer473","Utilities","South America","Entera CRM",700,799,"Q1",2003,"Nasim Hanson","2003Q1","Utilities2003Q1","South America2003Q1","Nasim Hanson2003Q1","Entera CRM2003Q1"]
["474","Customer474","Consumer Goods","Europe","Product2",200,889,"Q2",2003,"Fritz Klein","2003Q2","Consumer Goods2003Q2","Europe2003Q2","Fritz Klein2003Q2","Product22003Q2"]
["475","Customer475","Services","North America","Product4",600,961,"Q1",2005,"Porter Le","2005Q1","Services2005Q1","North America2005Q1","Porter Le2005Q1","Product42005Q1"]
["476","Customer476","Services","North America","Entera CRM",550,67,"Q3",2006,"Porter Le","2006Q3","Services2006Q3","North America2006Q3","Porter Le2006Q3","Entera CRM2006Q3"]
["477","Customer477","Finance","North America","Entera CRM",350,216,"Q2",2005,"Porter Le","2005Q2","Finance2005Q2","North America2005Q2","Porter Le2005Q2","Entera CRM2005Q2"]
["478","Customer478","Materials","South America","Product2",100,773,"Q1",2003,"Nasim Hanson","2003Q1","Materials2003Q1","South America2003Q1","Nasim Hanson2003Q1","Product22003Q1"]
["479","Customer479","Finance","Europe","Product1",400,406,"Q3",2006,"Fritz Klein","2006Q3","Finance2006Q3","Europe2006Q3","Fritz Klein2006Q3","Product12006Q3"]
["480","Customer480","Finance","Europe","Product1",350,502,"Q3",2004,"Fritz Klein","2004Q3","Finance2004Q3","Europe2004Q3","Fritz Klein2004Q3","Product12004Q3"]
["481","Customer481","Finance","North America","Product3",300,876,"Q1",2004,"Porter Le","2004Q1","Finance2004Q1","North America2004Q1","Porter Le2004Q1","Product32004Q1"]
["482","Customer482","Materials","South America","Entera CRM",100,945,"Q4",2008,"Nasim Hanson","2008Q4","Materials2008Q4","South America2008Q4","Nasim Hanson2008Q4","Entera CRM2008Q4"]
["483","Customer483","Materials","South America","Entera CRM",100,509,"Q3",2007,"Nasim Hanson","2007Q3","Materials2007Q3","South America2007Q3","Nasim Hanson2007Q3","Entera CRM2007Q3"]
["484","Customer484","Services","North America","Product3",550,100,"Q2",2004,"Porter Le","2004Q2","Services2004Q2","North America2004Q2","Porter Le2004Q2","Product32004Q2"]
["485","Customer485","Industrial Goods","Asia Pacific","Product3",550,302,"Q2",2006,"Oren Chase","2006Q2","Industrial Goods2006Q2","Asia Pacific2006Q2","Oren Chase2006Q2","Product32006Q2"]
["486","Customer486","Services","North America","Product3",550,909,"Q3",2004,"Porter Le","2004Q3","Services2004Q3","North America2004Q3","Porter Le2004Q3","Product32004Q3"]
["487","Customer487","Finance","North America","Product2",400,155,"Q2",2006,"Porter Le","2006Q2","Finance2006Q2","North America2006Q2","Porter Le2006Q2","Product22006Q2"]
["488","Customer488","Finance","North America","Entera CRM",350,226,"Q2",2005,"Porter Le","2005Q2","Finance2005Q2","North America2005Q2","Porter Le2005Q2","Entera CRM2005Q2"]
["489","Customer489","Materials","Middle East","Product1",150,528,"Q4",2006,"Bradley Valenzuela","2006Q4","Materials2006Q4","Middle East2006Q4","Bradley Valenzuela2006Q4","Product12006Q4"]
["490","Customer490","Services","North America","Product1",550,401,"Q3",2007,"Porter Le","2007Q3","Services2007Q3","North America2007Q3","Porter Le2007Q3","Product12007Q3"]
["491","Customer491","Technology","Asia Pacific","Entera CRM",650,969,"Q1",2005,"Oren Chase","2005Q1","Technology2005Q1","Asia Pacific2005Q1","Oren Chase2005Q1","Entera CRM2005Q1"]
["492","Customer492","Utilities","North America","Product3",700,714,"Q1",2007,"Porter Le","2007Q1","Utilities2007Q1","North America2007Q1","Porter Le2007Q1","Product32007Q1"]
["493","Customer493","Utilities","North America","Product3",700,193,"Q2",2003,"Porter Le","2003Q2","Utilities2003Q2","North America2003Q2","Porter Le2003Q2","Product32003Q2"]
["494","Customer494","Technology","North America","Product4",650,389,"Q4",2003,"Porter Le","2003Q4","Technology2003Q4","North America2003Q4","Porter Le2003Q4","Product42003Q4"]
["495","Customer495","Utilities","North America","Product4",700,514,"Q4",2006,"Porter Le","2006Q4","Utilities2006Q4","North America2006Q4","Porter Le2006Q4","Product42006Q4"]
["496","Customer496","Consumer Goods","Asia Pacific","Product4",250,881,"Q1",2006,"Oren Chase","2006Q1","Consumer Goods2006Q1","Asia Pacific2006Q1","Oren Chase2006Q1","Product42006Q1"]
["497","Customer497","Healthcare","Europe","Product2",500,228,"Q1",2005,"Fritz Klein","2005Q1","Healthcare2005Q1","Europe2005Q1","Fritz Klein2005Q1","Product22005Q1"]
["498","Customer498","Finance","North America","Product1",350,826,"Q3",2006,"Porter Le","2006Q3","Finance2006Q3","North America2006Q3","Porter Le2006Q3","Product12006Q3"]
["499","Customer499","Services","North America","Product4",550,909,"Q3",2003,"Porter Le","2003Q3","Services2003Q3","North America2003Q3","Porter Le2003Q3","Product42003Q3"]
["500","Customer500","Technology","North America","Product1",650,819,"Q2",2007,"Porter Le","2007Q2","Technology2007Q2","North America2007Q2","Porter Le2007Q2","Product12007Q2"]
["501","Customer501","Materials","North America","Product2",100,704,"Q4",2006,"Porter Le","2006Q4","Materials2006Q4","North America2006Q4","Porter Le2006Q4","Product22006Q4"]
["502","Customer502","Utilities","North America","Product3",700,642,"Q2",2007,"Porter Le","2007Q2","Utilities2007Q2","North America2007Q2","Porter Le2007Q2","Product32007Q2"]
["503","Customer503","Healthcare","North America","Product2",500,423,"Q3",2007,"Porter Le","2007Q3","Healthcare2007Q3","North America2007Q3","Porter Le2007Q3","Product22007Q3"]

{"sheet":"Pivots","index":1,"n_rows":48,"n_cols":7,"rows_kept":48,"cut":false,"hidden":true,"merged":[]}
["Row Labels","Estimated Revenue ($000) ","Actual Revenue ($000) "]
["Asia Pacific",46300,58445]
["Europe",46000,71443]
["Middle East",2000,6485]
["North America",88050,109520]
["South America",15750,22864]
["Grand Total",198100,268757]
[]
["Row Labels","Estimated Revenue ($000) ","Actual Revenue ($000) "]
["Entera CRM",40650,52628]
["Product1",41900,58392]
["Product2",35550,47017]
["Product3",39350,51843]
["Product4",40650,58877]
["Grand Total",198100,268757]
[]
["Row Labels","Estimated Revenue ($000) ","Actual Revenue ($000) ",null,"Row Labels","Sum of Estimated Revenue ($000)","Sum of Actual Revenue ($000)"]
["Bradley Valenzuela",2000,6485,null,2003,41650,57829]
["Fritz Klein",46000,71443,null,"Q1",9700,16584]
["Nasim Hanson",15750,22864,null,"Q2",9800,12395]
["Oren Chase",46300,58445,null,"Q3",10350,15294]
["Porter Le",88050,109520,null,"Q4",11800,13556]
["Grand Total",198100,268757,null,2004,24750,33859]
[null,null,null,null,"Q1",3500,4055]
["Row Labels","Sum of Actual Revenue ($000)",null,null,"Q2",7100,9726]
["Consumer Goods",63860,null,null,"Q3",8650,10724]
["Finance",52158,null,null,"Q4",5500,9354]
["Healthcare",27671,null,null,2005,38000,45599]
["Industrial Goods",7041,null,null,"Q1",6050,8015]
["Materials",41329,null,null,"Q2",9650,11882]
["Services",37038,null,null,"Q3",8750,11316]
["Technology",24873,null,null,"Q4",13550,14386]
["Utilities",14787,null,null,2006,36350,48100]
["Grand Total",268757,null,null,"Q1",7250,9938]
[null,null,null,null,"Q2",8650,12644]
[null,null,null,null,"Q3",8350,10001]
[null,null,null,null,"Q4",12100,15517]
[null,null,null,null,2007,32550,42613]
[null,null,null,null,"Q1",8800,10886]
[null,null,null,null,"Q2",10750,14701]
[null,null,null,null,"Q3",8100,11127]
[null,null,null,null,"Q4",4900,5899]
[null,null,null,null,2008,24800,40757]
[null,null,null,null,"Q1",5700,9517]
[null,null,null,null,"Q2",6800,7617]
[null,null,null,null,"Q3",6250,12281]
[null,null,null,null,"Q4",6050,11342]
[null,null,null,null,"Grand Total",198100,268757]

{"sheet":"Dashboard","index":2,"n_rows":39,"n_cols":23,"rows_kept":39,"cut":false,"hidden":false,"merged":[[1,11,5,29],[2,6,3,9],[25,22,25,27],[8,6,8,11],[8,14,8,19],[8,22,8,27],[29,5,29,8],[29,10,29,13]]}
[]
[null,null,null,null,null,null,null,null,null,null,null,"Created by ExcelForum.com user: estratosphere"]
[null,null,null,null,null,null,"Financial Dashboard"]
[]
[null,null,null,null,null,null,"Fiscal Years 2003-2008"]
[]
[null,null,"Dashboard Filters:"]
[null,null,null,null,null,"REVENUE STATISTICS"]
[null,null,null,null,null,null,"By Region",null,null,null,null,null,null,null,"By Product",null,null,null,null,null,null,null,"By Sales Rep"]
[]
[]
[]
[]
[]
[]
[]
[]
[]
[]
[]
[]
[]
[]
[]
[]
[null,null,null,null,null,null,null,null,null,null,null,null,null,null,null,null,null,null,null,null,null,null,"Estimated vs Actual Revenue"]
[]
[null,null,null,null,null,"RANKINGS",null,null,null,null,null,null,null,null,null,null,"GENERAL INFORMATION"]
[]
[null,null,null,null,null,"Sales Rep (based on Revenue)",null,null,null,null,"Industry (based on Revenue)"]
[null,null,null,null,null,null,null,null,null,null,null,null,null,null,null,null,"Number of Customers",null,null,{"$f":"COUNTA(Data!A:A)-1","v":503}]
[null,null,null,null,null,{"$f":"RANK(I32,$I$32:$I$36,0)","v":1},"Porter Le",null,{"$f":"GETPIVOTDATA(\"Actual Revenue ($000) \",Pivots!$A$17,\"Sales Rep\",\"Porter Le\")","v":109520},null,{"$f":"RANK(N32,$N$32:$N$39,0)","v":1},"Consumer Goods",null,{"$f":"GETPIVOTDATA(\"Actual Revenue ($000)\",Pivots!$A$25,\"Industry\",\"Consumer Goods\")","v":63860}]
[null,null,null,null,null,{"$f":"RANK(I33,$I$32:$I$36,0)","v":2},"Fritz Klein",null,{"$f":"GETPIVOTDATA(\"Actual Revenue ($000) \",Pivots!$A$17,\"Sales Rep\",\"Fritz Klein\")","v":71443},null,{"$f":"RANK(N33,$N$32:$N$39,0)","v":2},"Finance",null,{"$f":"GETPIVOTDATA(\"Actual Revenue ($000)\",Pivots!$A$25,\"Industry\",\"Finance\")","v":52158},null,null,"Number of Products",null,null,{"$f":"SUM(IF(FREQUENCY(MATCH(Data!E2:E504,Data!E2:E504,0),MATCH(Data!E2:E504,Data!E2:E504,0))>0,1))","v":5}]
[null,null,null,null,null,{"$f":"RANK(I34,$I$32:$I$36,0)","v":3},"Oren Chase",null,{"$f":"GETPIVOTDATA(\"Actual Revenue ($000) \",Pivots!$A$17,\"Sales Rep\",\"Oren Chase\")","v":58445},null,{"$f":"RANK(N34,$N$32:$N$39,0)","v":3},"Materials",null,{"$f":"GETPIVOTDATA(\"Actual Revenue ($000)\",Pivots!$A$25,\"Industry\",\"Materials\")","v":41329}]
[null,null,null,null,null,{"$f":"RANK(I35,$I$32:$I$36,0)","v":4},"Nasim Hanson",null,{"$f":"GETPIVOTDATA(\"Actual Revenue ($000) \",Pivots!$A$17,\"Sales Rep\",\"Nasim Hanson\")","v":22864},null,{"$f":"RANK(N35,$N$32:$N$39,0)","v":4},"Services",null,{"$f":"GETPIVOTDATA(\"Actual Revenue ($000)\",Pivots!$A$25,\"Industry\",\"Services\")","v":37038},null,null,"Number of Industries",null,null,{"$f":"SUM(IF(FREQUENCY(MATCH(Data!C2:C504,Data!C2:C504,0),MATCH(Data!C2:C504,Data!C2:C504,0))>0,1))","v":8}]
[null,null,null,null,null,{"$f":"RANK(I36,$I$32:$I$36,0)","v":5},"Bradley Valenzuela",null,{"$f":"GETPIVOTDATA(\"Actual Revenue ($000) \",Pivots!$A$17,\"Sales Rep\",\"Bradley Valenzuela\")","v":6485},null,{"$f":"RANK(N36,$N$32:$N$39,0)","v":5},"Healthcare",null,{"$f":"GETPIVOTDATA(\"Actual Revenue ($000)\",Pivots!$A$25,\"Industry\",\"Healthcare\")","v":27671}]
[null,null,null,null,null,null,null,null,null,null,{"$f":"RANK(N37,$N$32:$N$39,0)","v":6},"Technology",null,{"$f":"GETPIVOTDATA(\"Actual Revenue ($000)\",Pivots!$A$25,\"Industry\",\"Technology\")","v":24873},null,null,"Number of Sales Reps",null,null,{"$f":"SUM(IF(FREQUENCY(MATCH(Data!J2:J504,Data!J2:J504,0),MATCH(Data!J2:J504,Data!J2:J504,0))>0,1))","v":5}]
[null,null,null,null,null,null,null,null,null,null,{"$f":"RANK(N38,$N$32:$N$39,0)","v":7},"Utilities",null,{"$f":"GETPIVOTDATA(\"Actual Revenue ($000)\",Pivots!$A$25,\"Industry\",\"Utilities\")","v":14787}]
[null,null,null,null,null,null,null,null,null,null,{"$f":"RANK(N39,$N$32:$N$39,0)","v":8},"Industrial Goods",null,{"$f":"GETPIVOTDATA(\"Actual Revenue ($000)\",Pivots!$A$25,\"Industry\",\"Industrial Goods\")","v":7041}]